Workbook

Sheet Resumo
A1: Código | B1: Quantidade
A2: UC01 - GEOTÉCNICO SOLO ROCHA
A3: 004007002 | B3: 1500
A4: 004018001 | B4: 1875
A5: 004019001 | B5: 1875
A7: UC04 - EEAB MATERIAIS

Sheet Diametro Material (hidden)
C1: DIÂMETRO (m) | D1: MATERIAL | F1: Tipo de Material | G1: SL(m)
C2: 0.02 | D2: PVC | F2: PVC e RPVC | G2: 0.35
C3: 0.025 | D3: FD | F3: Concreto até DN500 | G3: 0.6 | Q3: DE 20 mm
C4: 0.032 | D4: PEAD | F4: Concreto DN600 a DN800 | G4: 0.8 | Q4: DE 25 mm
C5: 0.04 | D5: PEAD CORRUGADO | F5: Concreto DN900 a DN1200 | G5: 1 | Q5: DE 32 mm
C6: 0.05 | D6: Aço | F6: Concreto DN1500 | G6: 1.1 | Q6: DE 40 mm
C7: 0.063 | D7: PVC-U | F7: FD/PRFV até DN300 | G7: 0.35 | Q7: DE 50 mm
C8: 0.075 | D8: PP | F8: FD/PRFV DN350 a DN600 | G8: 0.45 | Q8: DE 63 mm
C9: 0.09 | D9: PE | F9: FD/PRFV DN700 a DN1200 | G9: 0.9 | Q9: DE 75 mm
C10: 0.11 | D10: CONC ELAST | F10: Aço até DN300 | G10: 0.3 | Q10: DE 90 mm
C11: 0.125 | D11: CONC MF | F11: Aço DN350 a DN900 | G11: 0.4 | Q11: DE 110 mm
C12: 0.14 | D12: RPVC | F12: Aço DN1000 a DN1200 | G12: 0.6 | Q12: DE 125 mm
C13: 0.15 | D13: PRFV | F13: PEAD em Barras | G13: 0.35 | Q13: DE 140 mm
C14: 0.16 | F14: PEAD em Rolo - Escavação Manual | G14: 0.3 | Q14: DE 160 mm
C15: 0.18 | F15: PEAD em Rolo - Escavação Mecânica | G15: 0.2 | Q15: DE 180 mm
C16: 0.2 | Q16: DE 200 mm
C17: 0.225 | Q17: DE 225 mm
C18: 0.25 | Q18: DE 250 mm
C19: 0.28 | Q19: DE 280 mm
C20: 0.3 | Q20: DE 315 mm
C21: 0.315 | Q21: DE 355 mm
C22: 0.35 | Q22: DE 400 mm
C23: 0.355 | Q23: DE 450 mm
C24: 0.4 | Q24: DE 500 mm
C25: 0.45 | Q25: DE 560 mm
C26: 0.5 | Q26: DE 630 mm
C27: 0.56 | Q27: DE 680 mm
C28: 0.6 | Q28: DE 710 mm
C29: 0.63 | Q29: DE 730 mm
C30: 0.68 | Q30: DE 800 mm
C31: 0.7 | Q31: DE 900 mm
C32: 0.71 | Q32: DE 1000 mm
C33: 0.73 | Q33: DE 1200 mm
C34: 0.8
C35: 0.9
C36: 1
C37: 1.2
C38: 1.5
C45: 0.15 | D45: PVC | E45: =matSL(D45,C45) -> 0.35
C46: 0.2 | D46: FD | E46: 0.35
C47: 0.25 | D47: PEAD ROLO
C48: 0.3 | D48: PEAD BARRA
C49: 0.35 | D49: Aço | E49: 0.4
C50: 0.4 | D50: PVC-U | E50: 0.35
C51: 0.45 | D51: PP
C52: 0.5 | D52: PE
C53: 0.6 | D53: CONC ELAST
C54: 0.7 | D54: CONC MF
C55: 0.8 | D55: RPVC
C56: 0.9 | D56: PRFV
C57: 1
C58: 1.2
C59: 1.5

Sheet UC01 - GEOTÉCNICO SOLO ROCHA
A2: QUADRO DE QUANTITATIVOS - PROJETO GEOTÉCNICO
A3: ITEM | B3: QTDE GERAL | C3: UNIDADE | D3: DESCRIÇÃO | E3: QUANTIDADE | Y3: Preço Unit. | Z3: Preço
B4: TOTAL UNID | E4: UNID 01 | F4: UNID 02 | G4: UNID 03 | H4: UNID 04 | I4: UNID 05 | J4: UNID 06 | K4: UNID 07 | L4: UNID 08 | M4: UNID 09 | N4: UNID 10 | O4: UNID 11 | P4: UNID 12 | Q4: UNID 13 | R4: UNID 14 | S4: UNID 15 | T4: UNID 16 | U4: UNID 17 | V4: UNID 18 | W4: UNID 19 | X4: UNID 20
D5: EXPORTAÇÃO
A6: 004.007 | B6: =SUM(E6:X6) -> 0 | D6: ESCAVAÇÃO MECÂNICA, NÃO EM VALAS, EM QUALQUER TIPO DE SOLO, EXCETO ROCHA
A7: 004007001 | B7: =SUM(E7:X7) -> 0 | C7: m³ | D7: Solos em geral, profundidade 0 m < h ≤ 2 m | Y7: =IF(A7="","",VLOOKUP(A7,'TABELA VIG MOS SERV'!$C$15:$G$2887,5,FALSE)) -> 12.76 | Z7: =IF(Y7="","",B7*Y7) -> 0
A8: 004007002 | B8: =SUM(E8:X8) -> 0 | C8: m³ | D8: Solos em geral, profundidade 0 m < h ≤ 4 m | Y8: =IF(A8="","",VLOOKUP(A8,'TABELA VIG MOS SERV'!$C$15:$G$2887,5,FALSE)) -> 14.88 | Z8: =IF(Y8="","",B8*Y8) -> 0
A9: 004007003 | B9: 0 | C9: m³ | D9: Solos em geral, profundidade 0 m < h ≤ 6 m | Y9: =IF(A9="","",VLOOKUP(A9,'TABELA VIG MOS SERV'!$C$15:$G$2887,5,FALSE)) -> 17.47 | Z9: 0
A10: 004007004 | B10: 0 | C10: m³ | D10: Solos em geral, profundidade 0 m < h ≤ 8 m | Y10: =IF(A10="","",VLOOKUP(A10,'TABELA VIG MOS SERV'!$C$15:$G$2887,5,FALSE)) -> 18.7 | Z10: 0
A11: 004007005 | B11: 0 | C11: m³ | D11: Solo arenoso compacto ou argila dura (moledo ou cascalho), profundidade 0 m < h ≤ 2 m | Y11: =IF(A11="","",VLOOKUP(A11,'TABELA VIG MOS SERV'!$C$15:$G$2887,5,FALSE)) -> 15.63 | Z11: 0
A12: 004007006 | B12: 0 | C12: m³ | D12: Solo arenoso compacto ou argila dura (moledo ou cascalho), profundidade 0 m < h ≤ 4 m | Y12: =IF(A12="","",VLOOKUP(A12,'TABELA VIG MOS SERV'!$C$15:$G$2887,5,FALSE)) -> 18.24 | Z12: 0
A13: 004007007 | B13: 0 | C13: m³ | D13: Solo arenoso compacto ou argila dura (moledo ou cascalho), profundidade 0 m < h ≤ 6 m | Y13: =IF(A13="","",VLOOKUP(A13,'TABELA VIG MOS SERV'!$C$15:$G$2887,5,FALSE)) -> 30.52 | Z13: 0
A14: 004007008 | B14: 0 | C14: m³ | D14: Solo arenoso compacto ou argila dura (moledo ou cascalho), profundidade 0 m < h ≤ 8 m | Y14: =IF(A14="","",VLOOKUP(A14,'TABELA VIG MOS SERV'!$C$15:$G$2887,5,FALSE)) -> 32.7 | Z14: 0
A15: 004.008 | B15: 0 | D15: DESMONTE DE ROCHA BRANDA, NÃO EM VALAS | Y15: =IF(A15="","",VLOOKUP(A15,'TABELA VIG MOS SERV'!$C$15:$G$2887,5,FALSE)) -> 0 | Z15: 0
A16: 004008001 | B16: 0 | C16: m³ | D16: Com uso de explosivo | Y16: =IF(A16="","",VLOOKUP(A16,'TABELA VIG MOS SERV'!$C$15:$G$2887,5,FALSE)) -> 132.25 | Z16: 0
A17: 004008002 | B17: 0 | C17: m³ | D17: Sem uso de explosivo | Y17: =IF(A17="","",VLOOKUP(A17,'TABELA VIG MOS SERV'!$C$15:$G$2887,5,FALSE)) -> 231.91 | Z17: 0
A18: 004.009 | B18: 0 | D18: DESMONTE DE ROCHA DURA, NÃO EM VALAS | Y18: =IF(A18="","",VLOOKUP(A18,'TABELA VIG MOS SERV'!$C$15:$G$2887,5,FALSE)) -> 0 | Z18: 0
A19: 004009001 | B19: 0 | C19: m³ | D19: Com uso de explosivo | Y19: =IF(A19="","",VLOOKUP(A19,'TABELA VIG MOS SERV'!$C$15:$G$2887,5,FALSE)) -> 213.43 | Z19: 0
A20: 004009002 | B20: 0 | C20: m³ | D20: Sem uso de explosivo | Y20: =IF(A20="","",VLOOKUP(A20,'TABELA VIG MOS SERV'!$C$15:$G$2887,5,FALSE)) -> 331.3 | Z20: 0
A21: 004.010 | B21: 0 | D21: RETIRADA DE ROCHA DESMONTADA, NÃO EM VALAS | Y21: =IF(A21="","",VLOOKUP(A21,'TABELA VIG MOS SERV'!$C$15:$G$2887,5,FALSE)) -> 0 | Z21: 0
A22: 004010001 | B22: 0 | C22: m³ | D22: Manual prof. 0 m < h ≤ 1 m | Y22: =IF(A22="","",VLOOKUP(A22,'TABELA VIG MOS SERV'!$C$15:$G$2887,5,FALSE)) -> 119.16 | Z22: 0
A23: 004010002 | B23: 0 | C23: m³ | D23: Manual prof. 1 m < h ≤ 2 m | Y23: =IF(A23="","",VLOOKUP(A23,'TABELA VIG MOS SERV'!$C$15:$G$2887,5,FALSE)) -> 132.4 | Z23: 0
A24: 004010003 | B24: 0 | C24: m³ | D24: Manual prof. 2 m < h ≤ 3 m | Y24: =IF(A24="","",VLOOKUP(A24,'TABELA VIG MOS SERV'!$C$15:$G$2887,5,FALSE)) -> 145.64 | Z24: 0
A25: 004010004 | B25: 0 | C25: m³ | D25: Manual prof. 3 m < h ≤ 4 m | Y25: =IF(A25="","",VLOOKUP(A25,'TABELA VIG MOS SERV'!$C$15:$G$2887,5,FALSE)) -> 158.88 | Z25: 0
A26: 004010005 | B26: 0 | C26: m³ | D26: Mecânica prof. 0 m < h ≤ 2 m | Y26: =IF(A26="","",VLOOKUP(A26,'TABELA VIG MOS SERV'!$C$15:$G$2887,5,FALSE)) -> 44.2 | Z26: 0
A27: 004010006 | B27: 0 | C27: m³ | D27: Mecânica prof. 0 m < h ≤ 4 m | Y27: =IF(A27="","",VLOOKUP(A27,'TABELA VIG MOS SERV'!$C$15:$G$2887,5,FALSE)) -> 46.44 | Z27: 0
A28: 004010007 | B28: 0 | C28: m³ | D28: Mecânica prof. 0 m < h ≤ 6 m | Y28: =IF(A28="","",VLOOKUP(A28,'TABELA VIG MOS SERV'!$C$15:$G$2887,5,FALSE)) -> 51.03 | Z28: 0
A29: 004010008 | B29: 0 | C29: m³ | D29: Mecânica prof. 0 m < h ≤ 8 m | Y29: =IF(A29="","",VLOOKUP(A29,'TABELA VIG MOS SERV'!$C$15:$G$2887,5,FALSE)) -> 55.95 | Z29: 0
A30: 004.011 | B30: 0 | D30: RETIRADA MECÂNICA DE SOLO LAMACENTO | Y30: =IF(A30="","",VLOOKUP(A30,'TABELA VIG MOS SERV'!$C$15:$G$2887,5,FALSE)) -> 0 | Z30: 0
A31: 004011001 | B31: 0 | C31: m³ | D31: Retirada mecânica de solo lamacento | Y31: =IF(A31="","",VLOOKUP(A31,'TABELA VIG MOS SERV'!$C$15:$G$2887,5,FALSE)) -> 9.72 | Z31: 0
A32: 004.018 | B32: =SUM(E32:X32) -> 0 | D32: CARGA E DESCARGA DE SOLOS | Y32: =IF(A32="","",VLOOKUP(A32,'TABELA VIG MOS SERV'!$C$15:$G$2887,5,FALSE)) -> 0 | Z32: 0
A33: 004018001 | B33: 0 | C33: m³ | D33: Qualquer tipo de solo exceto rocha | E33: =SUM(E7:E14)*1.25 -> 0 | F33: =SUM(F7:F14)*1.25 -> 0 | G33: =SUM(G7:G14)*1.25 -> 0 | H33: =SUM(H7:H14)*1.25 -> 0 | I33: 0 | J33: 0 | K33: 0 | L33: 0 | M33: 0 | N33: 0 | O33: 0 | P33: 0 | Q33: 0 | R33: 0 | S33: 0 | T33: 0 | U33: 0 | V33: 0 | W33: 0 | X33: 0 | Y33: =IF(A33="","",VLOOKUP(A33,'TABELA VIG MOS SERV'!$C$15:$G$2887,5,FALSE)) -> 3.81 | Z33: 0
A34: 004018002 | B34: 0 | C34: m³ | D34: Carga e descarga de solos - rocha | E34: =SUM(E16:E20)*1.3 -> 0 | F34: =SUM(F16:F20)*1.3 -> 0 | G34: 0 | H34: =SUM(H16:H20)*1.3 -> 0 | I34: 0 | J34: 0 | K34: 0 | L34: 0 | M34: 0 | N34: 0 | O34: 0 | P34: 0 | Q34: 0 | R34: 0 | S34: 0 | T34: 0 | U34: 0 | V34: 0 | W34: 0 | X34: 0 | Y34: =IF(A34="","",VLOOKUP(A34,'TABELA VIG MOS SERV'!$C$15:$G$2887,5,FALSE)) -> 4.58 | Z34: 0
A35: 004.019 | B35: 0 | D35: TRANSPORTE DE SOLOS (1) | Y35: =IF(A35="","",VLOOKUP(A35,'TABELA VIG MOS SERV'!$C$15:$G$2887,5,FALSE)) -> 0 | Z35: 0
A36: 004019001 | B36: 0 | C36: m³xkm | D36: =CONCATENATE("Transporte de solos - qquer tipo de solo, exceto rocha, em rodovia ou rua ",AC36," km (1)") -> Transporte de solos - qquer tipo de solo, exceto rocha, em rodovia ou rua 1 km (1) | E36: =E33*$AC36 -> 0 | F36: =F33*$AC36 -> 0 | G36: =G33*$AC36 -> 0 | H36: =H33*$AC36 -> 0 | I36: 0 | J36: 0 | K36: 0 | L36: 0 | M36: 0 | N36: 0 | O36: 0 | P36: 0 | Q36: 0 | R36: 0 | S36: 0 | T36: 0 | U36: 0 | V36: 0 | W36: 0 | X36: 0 | Y36: =IF(A36="","",VLOOKUP(A36,'TABELA VIG MOS SERV'!$C$15:$G$2887,5,FALSE)) -> 1.68 | Z36: 0 | AB36: DMT = | AC36: 1 | AD36: km | AE36: =IF(AC36<=0.03,"ZERAR!","ok") -> ok
A37: 004019002 | B37: 0 | C37: m³xkm | D37: =CONCATENATE("Transporte de solos - qquer tipo de solo, exceto rocha, em caminho de serviço ",AC37," km (1)") -> Transporte de solos - qquer tipo de solo, exceto rocha, em caminho de serviço 1 km (1) | Y37: =IF(A37="","",VLOOKUP(A37,'TABELA VIG MOS SERV'!$C$15:$G$2887,5,FALSE)) -> 4.44 | Z37: 0 | AB37: DMT = | AC37: 1 | AD37: km | AE37: =IF(AC37<=0.03,"ZERAR!","ok") -> ok
A38: 004019003 | B38: 0 | C38: m³xkm | D38: =CONCATENATE("Transporte de solos - rocha, em rodovia ou rua ",AC38," km (2)") -> Transporte de solos - rocha, em rodovia ou rua 1 km (2) | E38: =E34*$AC38 -> 0 | F38: =F34*$AC38 -> 0 | G38: =G34*$AC38 -> 0 | H38: =H34*$AC38 -> 0 | I38: 0 | J38: 0 | K38: 0 | L38: 0 | M38: 0 | N38: 0 | O38: 0 | P38: 0 | Q38: 0 | R38: 0 | S38: 0 | T38: 0 | U38: 0 | V38: 0 | W38: 0 | X38: 0 | Y38: =IF(A38="","",VLOOKUP(A38,'TABELA VIG MOS SERV'!$C$15:$G$2887,5,FALSE)) -> 2.02 | Z38: 0 | AB38: DMT = | AC38: 1 | AD38: km | AE38: =IF(AC38<=0.03,"ZERAR!","ok") -> ok
A39: 004019004 | B39: 0 | C39: m³xkm | D39: =CONCATENATE("Transporte de solos - rocha, em caminho de serviço ",AC39," km (2)") -> Transporte de solos - rocha, em caminho de serviço 1 km (2) | Y39: =IF(A39="","",VLOOKUP(A39,'TABELA VIG MOS SERV'!$C$15:$G$2887,5,FALSE)) -> 5.33 | Z39: 0 | AB39: DMT = | AC39: 1 | AD39: km | AE39: =IF(AC39<=0.03,"ZERAR!","ok") -> ok
A40: 004.020 | B40: 0 | D40: PROTEÇÃO PARA DESMONTE COM USO DE EXPLOSIVO | Y40: =IF(A40="","",VLOOKUP(A40,'TABELA VIG MOS SERV'!$C$15:$G$2887,5,FALSE)) -> 0 | Z40: 0
A41: 004020001 | B41: 0 | C41: m² | D41: Com rede metálica simples 1/2” | Y41: =IF(A41="","",VLOOKUP(A41,'TABELA VIG MOS SERV'!$C$15:$G$2887,5,FALSE)) -> 24.88 | Z41: 0
A42: 004020002 | B42: 0 | C42: m² | D42: Com rede metálica simples 5/8” | Y42: =IF(A42="","",VLOOKUP(A42,'TABELA VIG MOS SERV'!$C$15:$G$2887,5,FALSE)) -> 29.75 | Z42: 0
A43: 004020003 | B43: 0 | C43: m² | D43: Com rede metálica dupla | Y43: =IF(A43="","",VLOOKUP(A43,'TABELA VIG MOS SERV'!$C$15:$G$2887,5,FALSE)) -> 54.55 | Z43: 0
A44: 004020004 | B44: 0 | C44: m³ | D44: Com terra | Y44: =IF(A44="","",VLOOKUP(A44,'TABELA VIG MOS SERV'!$C$15:$G$2887,5,FALSE)) -> 45.01 | Z44: 0
A45: 004020005 | B45: 0 | C45: m² | D45: Com Manta de Borracha | Y45: =IF(A45="","",VLOOKUP(A45,'TABELA VIG MOS SERV'!$C$15:$G$2887,5,FALSE)) -> 242.06 | Z45: 0
A46: 004.021 | B46: 0 | D46: TRANSPORTE DE EXPLOSIVOS E ACESSÓRIOS
A47: 004021001 | B47: 0 | C47: ud | D47: Transporte de explosivos e acessórios (pago apenas 1x no contrato) | Y47: =IF(A47="","",VLOOKUP(A47,'TABELA VIG MOS SERV'!$C$15:$G$2887,5,FALSE)) -> 0 | Z47: 0
B48: 0 | D48: IMPORTAÇÃO | Y48: =IF(A48="","",VLOOKUP(A48,'TABELA VIG MOS SERV'!$C$15:$G$2887,5,FALSE)) -> 
A49: 004.016 | B49: 0 | D49: JAZIDA | Y49: =IF(A49="","",VLOOKUP(A49,'TABELA VIG MOS SERV'!$C$15:$G$2887,5,FALSE)) -> 0 | Z49: 0
A50: 004016001 | B50: 0 | C50: m³ | D50: Escavação de material em jazidas | Y50: =IF(A50="","",VLOOKUP(A50,'TABELA VIG MOS SERV'!$C$15:$G$2887,5,FALSE)) -> 36.51 | Z50: 0
A51: 004.007 | B51: 0 | D51: ESCAVAÇÃO MECÂNICA, NÃO EM VALAS, EM QUALQUER TIPO DE SOLO, EXCETO ROCHA | Y51: =IF(A51="","",VLOOKUP(A51,'TABELA VIG MOS SERV'!$C$15:$G$2887,5,FALSE)) -> 0 | Z51: 0
A52: 004007001 | B52: 0 | C52: m³ | D52: Solos em geral, profundidade 0 m < h ≤ 2 m | Y52: =IF(A52="","",VLOOKUP(A52,'TABELA VIG MOS SERV'!$C$15:$G$2887,5,FALSE)) -> 12.76 | Z52: 0
A53: 004007002 | B53: 0 | C53: m³ | D53: Solos em geral, profundidade 0 m < h ≤ 4 m | Y53: =IF(A53="","",VLOOKUP(A53,'TABELA VIG MOS SERV'!$C$15:$G$2887,5,FALSE)) -> 14.88 | Z53: 0
A54: 004007003 | B54: 0 | C54: m³ | D54: Solos em geral, profundidade 0 m < h ≤ 6 m | Y54: =IF(A54="","",VLOOKUP(A54,'TABELA VIG MOS SERV'!$C$15:$G$2887,5,FALSE)) -> 17.47 | Z54: 0
A55: 004007004 | B55: 0 | C55: m³ | D55: Solos em geral, profundidade 0 m < h ≤ 8 m | Y55: =IF(A55="","",VLOOKUP(A55,'TABELA VIG MOS SERV'!$C$15:$G$2887,5,FALSE)) -> 18.7 | Z55: 0
A56: 004007005 | B56: 0 | C56: m³ | D56: Solo arenoso compacto ou argila dura (moledo ou cascalho), profundidade 0 m < h ≤ 2 m | Y56: =IF(A56="","",VLOOKUP(A56,'TABELA VIG MOS SERV'!$C$15:$G$2887,5,FALSE)) -> 15.63 | Z56: 0
A57: 004007006 | B57: 0 | C57: m³ | D57: Solo arenoso compacto ou argila dura (moledo ou cascalho), profundidade 0 m < h ≤ 4 m | Y57: =IF(A57="","",VLOOKUP(A57,'TABELA VIG MOS SERV'!$C$15:$G$2887,5,FALSE)) -> 18.24 | Z57: 0
A58: 004007007 | B58: 0 | C58: m³ | D58: Solo arenoso compacto ou argila dura (moledo ou cascalho), profundidade 0 m < h ≤ 6 m | Y58: =IF(A58="","",VLOOKUP(A58,'TABELA VIG MOS SERV'!$C$15:$G$2887,5,FALSE)) -> 30.52 | Z58: 0
A59: 004007008 | B59: 0 | C59: m³ | D59: Solo arenoso compacto ou argila dura (moledo ou cascalho), profundidade 0 m < h ≤ 8 m | Y59: =IF(A59="","",VLOOKUP(A59,'TABELA VIG MOS SERV'!$C$15:$G$2887,5,FALSE)) -> 32.7 | Z59: 0
A60: 004.018 | B60: 0 | D60: CARGA E DESCARGA DE SOLOS | Y60: =IF(A60="","",VLOOKUP(A60,'TABELA VIG MOS SERV'!$C$15:$G$2887,5,FALSE)) -> 0 | Z60: 0
A61: 004018001 | B61: 0 | C61: m³ | D61: Qualquer tipo de solo exceto rocha | E61: =SUM(E50:E59)*1.25 -> 0 | F61: =SUM(F50:F59)*1.25 -> 0 | G61: =SUM(G50:G59)*1.25 -> 0 | H61: =SUM(H50:H59)*1.25 -> 0 | I61: 0 | J61: 0 | K61: 0 | L61: 0 | M61: 0 | N61: 0 | O61: 0 | P61: 0 | Q61: 0 | R61: 0 | S61: 0 | T61: 0 | U61: 0 | V61: 0 | W61: 0 | X61: 0 | Y61: =IF(A61="","",VLOOKUP(A61,'TABELA VIG MOS SERV'!$C$15:$G$2887,5,FALSE)) -> 3.81 | Z61: 0
A62: 004.019 | B62: 0 | D62: TRANSPORTE DE SOLOS (2) | Y62: =IF(A62="","",VLOOKUP(A62,'TABELA VIG MOS SERV'!$C$15:$G$2887,5,FALSE)) -> 0 | Z62: 0
A63: 004019001 | B63: 0 | C63: m³xkm | D63: =CONCATENATE("Transporte de solos - qquer tipo de solo, exceto rocha, em rodovia ou rua ",AC63," km (1)") -> Transporte de solos - qquer tipo de solo, exceto rocha, em rodovia ou rua 1 km (1) | E63: =E61*$AC63 -> 0 | F63: =F61*$AC63 -> 0 | G63: =G61*$AC63 -> 0 | H63: =H61*$AC63 -> 0 | I63: 0 | J63: 0 | K63: 0 | L63: 0 | M63: 0 | N63: 0 | O63: 0 | P63: 0 | Q63: 0 | R63: 0 | S63: 0 | T63: 0 | U63: 0 | V63: 0 | W63: 0 | X63: 0 | Y63: =IF(A63="","",VLOOKUP(A63,'TABELA VIG MOS SERV'!$C$15:$G$2887,5,FALSE)) -> 1.68 | Z63: 0 | AB63: DMT = | AC63: 1 | AD63: km | AE63: =IF(AC103<=0.03,"ZERAR!","ok") -> ok
A64: 004019002 | B64: 0 | C64: m³xkm | D64: =CONCATENATE("Transporte de solos - qquer tipo de solo, exceto rocha, em caminho de serviço ",AC64," km (1)") -> Transporte de solos - qquer tipo de solo, exceto rocha, em caminho de serviço 1 km (1) | Y64: =IF(A64="","",VLOOKUP(A64,'TABELA VIG MOS SERV'!$C$15:$G$2887,5,FALSE)) -> 4.44 | Z64: 0 | AB64: DMT = | AC64: 1 | AD64: km | AE64: =IF(AC103<=0.03,"ZERAR!","ok") -> ok
A65: 004.013 | B65: 0 | D65: ATERRO/REATERRO EM VALAS E CAVAS | Y65: =IF(A65="","",VLOOKUP(A65,'TABELA VIG MOS SERV'!$C$15:$G$2887,5,FALSE)) -> 0 | Z65: 0
A66: 004013001 | B66: 0 | C66: m³ | D66: Manual | Y66: =IF(A66="","",VLOOKUP(A66,'TABELA VIG MOS SERV'!$C$15:$G$2887,5,FALSE)) -> 11.91 | Z66: 0
A67: 004013002 | B67: 0 | C67: m³ | D67: Mecânico | E67: =SUM(E50:E59) -> 0 | F67: =SUM(F50:F59) -> 0 | G67: =SUM(G50:G59) -> 0 | H67: =SUM(H50:H59) -> 0 | I67: 0 | J67: 0 | K67: 0 | L67: 0 | M67: 0 | N67: 0 | O67: 0 | P67: 0 | Q67: 0 | R67: 0 | S67: 0 | T67: 0 | U67: 0 | V67: 0 | W67: 0 | X67: 0 | Y67: =IF(A67="","",VLOOKUP(A67,'TABELA VIG MOS SERV'!$C$15:$G$2887,5,FALSE)) -> 2.42 | Z67: 0
A68: 004.015 | B68: 0 | D68: COMPACTAÇÃO NÃO EM VALAS | Y68: =IF(A68="","",VLOOKUP(A68,'TABELA VIG MOS SERV'!$C$15:$G$2887,5,FALSE)) -> 0 | Z68: 0
A69: 004015001 | B69: 0 | C69: m³ | D69: Sem controle do GC | Y69: =IF(A69="","",VLOOKUP(A69,'TABELA VIG MOS SERV'!$C$15:$G$2887,5,FALSE)) -> 7.93 | Z69: 0
A70: 004015002 | B70: 0 | C70: m³ | D70: Com controle do GC - 95% PN | Y70: =IF(A70="","",VLOOKUP(A70,'TABELA VIG MOS SERV'!$C$15:$G$2887,5,FALSE)) -> 9.84 | Z70: 0
A71: 004015003 | B71: 0 | C71: m³ | D71: Com controle do GC - 100% PN | E71: =E67 -> 0 | F71: =F67 -> 0 | G71: 0 | H71: =H67 -> 0 | I71: 0 | J71: 0 | K71: 0 | L71: 0 | M71: 0 | N71: 0 | O71: 0 | P71: 0 | Q71: 0 | R71: 0 | S71: 0 | T71: 0 | U71: 0 | V71: 0 | W71: 0 | X71: 0 | Y71: =IF(A71="","",VLOOKUP(A71,'TABELA VIG MOS SERV'!$C$15:$G$2887,5,FALSE)) -> 12.82 | Z71: 0
B72: 0 | D72: COMPENSAÇÃO | Y72: =IF(A72="","",VLOOKUP(A72,'TABELA VIG MOS SERV'!$C$15:$G$2887,5,FALSE)) -> 
B73: =SUM(E73:X73) -> 0 | D73: ESCAVAÇÃO MECÂNICA, NÃO EM VALAS, EM QUALQUER TIPO DE SOLO, EXCETO ROCHA | Y73: =IF(A73="","",VLOOKUP(A73,'TABELA VIG MOS SERV'!$C$15:$G$2887,5,FALSE)) ->  | Z73: =IF(Y73="","",B73*Y73) -> 
A74: 004007001 | B74: 0 | C74: m³ | D74: Solos em geral, profundidade 0 m < h ≤ 2 m | Y74: =IF(A74="","",VLOOKUP(A74,'TABELA VIG MOS SERV'!$C$15:$G$2887,5,FALSE)) -> 12.76 | Z74: 0
A75: 004007002 | B75: 0 | C75: m³ | D75: Solos em geral, profundidade 0 m < h ≤ 4 m | Y75: =IF(A75="","",VLOOKUP(A75,'TABELA VIG MOS SERV'!$C$15:$G$2887,5,FALSE)) -> 14.88 | Z75: 0
A76: 004007003 | B76: 0 | C76: m³ | D76: Solos em geral, profundidade 0 m < h ≤ 6 m | Y76: =IF(A76="","",VLOOKUP(A76,'TABELA VIG MOS SERV'!$C$15:$G$2887,5,FALSE)) -> 17.47 | Z76: 0
A77: 004007004 | B77: 0 | C77: m³ | D77: Solos em geral, profundidade 0 m < h ≤ 8 m | Y77: =IF(A77="","",VLOOKUP(A77,'TABELA VIG MOS SERV'!$C$15:$G$2887,5,FALSE)) -> 18.7 | Z77: 0
A78: 004007005 | B78: 0 | C78: m³ | D78: Solo arenoso compacto ou argila dura (moledo ou cascalho), profundidade 0 m < h ≤ 2 m | Y78: =IF(A78="","",VLOOKUP(A78,'TABELA VIG MOS SERV'!$C$15:$G$2887,5,FALSE)) -> 15.63 | Z78: 0
A79: 004007006 | B79: 0 | C79: m³ | D79: Solo arenoso compacto ou argila dura (moledo ou cascalho), profundidade 0 m < h ≤ 4 m | Y79: =IF(A79="","",VLOOKUP(A79,'TABELA VIG MOS SERV'!$C$15:$G$2887,5,FALSE)) -> 18.24 | Z79: 0
A80: 004007007 | B80: 0 | C80: m³ | D80: Solo arenoso compacto ou argila dura (moledo ou cascalho), profundidade 0 m < h ≤ 6 m | Y80: =IF(A80="","",VLOOKUP(A80,'TABELA VIG MOS SERV'!$C$15:$G$2887,5,FALSE)) -> 30.52 | Z80: 0
A81: 004007008 | B81: 0 | C81: m³ | D81: Solo arenoso compacto ou argila dura (moledo ou cascalho), profundidade 0 m < h ≤ 8 m | Y81: =IF(A81="","",VLOOKUP(A81,'TABELA VIG MOS SERV'!$C$15:$G$2887,5,FALSE)) -> 32.7 | Z81: 0
A82: 004.008 | B82: 0 | D82: DESMONTE DE ROCHA BRANDA, NÃO EM VALAS | Y82: =IF(A82="","",VLOOKUP(A82,'TABELA VIG MOS SERV'!$C$15:$G$2887,5,FALSE)) -> 0 | Z82: 0
A83: 004008001 | B83: 0 | C83: m³ | D83: Com uso de explosivo | Y83: =IF(A83="","",VLOOKUP(A83,'TABELA VIG MOS SERV'!$C$15:$G$2887,5,FALSE)) -> 132.25 | Z83: 0
A84: 004008002 | B84: 0 | C84: m³ | D84: Sem uso de explosivo | Y84: =IF(A84="","",VLOOKUP(A84,'TABELA VIG MOS SERV'!$C$15:$G$2887,5,FALSE)) -> 231.91 | Z84: 0
A85: 004.009 | B85: 0 | D85: DESMONTE DE ROCHA DURA, NÃO EM VALAS | Y85: =IF(A85="","",VLOOKUP(A85,'TABELA VIG MOS SERV'!$C$15:$G$2887,5,FALSE)) -> 0 | Z85: 0
A86: 004009001 | B86: 0 | C86: m³ | D86: Com uso de explosivo | Y86: =IF(A86="","",VLOOKUP(A86,'TABELA VIG MOS SERV'!$C$15:$G$2887,5,FALSE)) -> 213.43 | Z86: 0
A87: 004009002 | B87: 0 | C87: m³ | D87: Sem uso de explosivo | Y87: =IF(A87="","",VLOOKUP(A87,'TABELA VIG MOS SERV'!$C$15:$G$2887,5,FALSE)) -> 331.3 | Z87: 0
A88: 004.010 | B88: 0 | D88: RETIRADA DE ROCHA DESMONTADA, NÃO EM VALAS | Y88: =IF(A88="","",VLOOKUP(A88,'TABELA VIG MOS SERV'!$C$15:$G$2887,5,FALSE)) -> 0 | Z88: 0
A89: 004010001 | B89: 0 | C89: m³ | D89: Manual prof. 0 m < h ≤ 1 m | Y89: =IF(A89="","",VLOOKUP(A89,'TABELA VIG MOS SERV'!$C$15:$G$2887,5,FALSE)) -> 119.16 | Z89: 0
A90: 004010002 | B90: 0 | C90: m³ | D90: Manual prof. 1 m < h ≤ 2 m | Y90: =IF(A90="","",VLOOKUP(A90,'TABELA VIG MOS SERV'!$C$15:$G$2887,5,FALSE)) -> 132.4 | Z90: 0
A91: 004010003 | B91: 0 | C91: m³ | D91: Manual prof. 2 m < h ≤ 3 m | Y91: =IF(A91="","",VLOOKUP(A91,'TABELA VIG MOS SERV'!$C$15:$G$2887,5,FALSE)) -> 145.64 | Z91: 0
A92: 004010004 | B92: 0 | C92: m³ | D92: Manual prof. 3 m < h ≤ 4 m | Y92: =IF(A92="","",VLOOKUP(A92,'TABELA VIG MOS SERV'!$C$15:$G$2887,5,FALSE)) -> 158.88 | Z92: 0
A93: 004010005 | B93: 0 | C93: m³ | D93: Mecânica prof. 0 m < h ≤ 2 m | Y93: =IF(A93="","",VLOOKUP(A93,'TABELA VIG MOS SERV'!$C$15:$G$2887,5,FALSE)) -> 44.2 | Z93: 0
A94: 004010006 | B94: 0 | C94: m³ | D94: Mecânica prof. 0 m < h ≤ 4 m | Y94: =IF(A94="","",VLOOKUP(A94,'TABELA VIG MOS SERV'!$C$15:$G$2887,5,FALSE)) -> 46.44 | Z94: 0
A95: 004010007 | B95: 0 | C95: m³ | D95: Mecânica prof. 0 m < h ≤ 6 m | Y95: =IF(A95="","",VLOOKUP(A95,'TABELA VIG MOS SERV'!$C$15:$G$2887,5,FALSE)) -> 51.03 | Z95: 0
A96: 004010008 | B96: 0 | C96: m³ | D96: Mecânica prof. 0 m < h ≤ 8 m | Y96: =IF(A96="","",VLOOKUP(A96,'TABELA VIG MOS SERV'!$C$15:$G$2887,5,FALSE)) -> 55.95 | Z96: 0
A97: 004.011 | B97: 0 | D97: RETIRADA MECÂNICA DE SOLO LAMACENTO | Y97: =IF(A97="","",VLOOKUP(A97,'TABELA VIG MOS SERV'!$C$15:$G$2887,5,FALSE)) -> 0 | Z97: 0
A98: 004011001 | B98: 0 | C98: m³ | D98: Retirada mecânica de solo lamacento | Y98: =IF(A98="","",VLOOKUP(A98,'TABELA VIG MOS SERV'!$C$15:$G$2887,5,FALSE)) -> 9.72 | Z98: 0
A99: 004.018 | B99: 0 | D99: CARGA E DESCARGA DE SOLOS | Y99: =IF(A99="","",VLOOKUP(A99,'TABELA VIG MOS SERV'!$C$15:$G$2887,5,FALSE)) -> 0 | Z99: 0
A100: 004018001 | B100: 0 | C100: m³ | D100: Qualquer tipo de solo exceto rocha | E100: =SUM(E74:E81)*1.25*2 -> 0 | F100: =SUM(F74:F81)*1.25*2 -> 0 | G100: 0 | H100: =SUM(H74:H81)*1.25*2 -> 0 | I100: 0 | J100: 0 | K100: 0 | L100: 0 | M100: 0 | N100: 0 | O100: 0 | P100: 0 | Q100: 0 | R100: 0 | S100: 0 | T100: 0 | U100: 0 | V100: 0 | W100: 0 | X100: 0 | Y100: =IF(A100="","",VLOOKUP(A100,'TABELA VIG MOS SERV'!$C$15:$G$2887,5,FALSE)) -> 3.81 | Z100: 0
A101: 004018002 | B101: 0 | C101: m³ | D101: Carga e descarga de solos - rocha | E101: =SUM(E83:E87)*1.3*2 -> 0 | F101: =SUM(F83:F87)*1.3*2 -> 0 | G101: 0 | H101: =SUM(H83:H87)*1.3*2 -> 0 | I101: 0 | J101: 0 | K101: 0 | L101: 0 | M101: 0 | N101: 0 | O101: 0 | P101: 0 | Q101: 0 | R101: 0 | S101: 0 | T101: 0 | U101: 0 | V101: 0 | W101: 0 | X101: 0 | Y101: =IF(A101="","",VLOOKUP(A101,'TABELA VIG MOS SERV'!$C$15:$G$2887,5,FALSE)) -> 4.58 | Z101: 0
A102: 004.019 | B102: 0 | D102: TRANSPORTE DE SOLOS (3) | Y102: =IF(A102="","",VLOOKUP(A102,'TABELA VIG MOS SERV'!$C$15:$G$2887,5,FALSE)) -> 0 | Z102: 0
A103: 004019001 | B103: 0 | C103: m³xkm | D103: =CONCATENATE("Transporte de solos - DMT>30 m - qquer tipo de solo, exceto rocha, em rodovia ou rua ",AC103," km (1)") -> Transporte de solos - DMT>30 m - qquer tipo de solo, exceto rocha, em rodovia ou rua 1 km (1) | E103: =E100*$AC103 -> 0 | F103: =F100*$AC103 -> 0 | G103: =G100*$AC103 -> 0 | H103: =H100*$AC103 -> 0 | I103: 0 | J103: 0 | K103: 0 | L103: 0 | M103: 0 | N103: 0 | O103: 0 | P103: 0 | Q103: 0 | R103: 0 | S103: 0 | T103: 0 | U103: 0 | V103: 0 | W103: 0 | X103: 0 | Y103: =IF(A103="","",VLOOKUP(A103,'TABELA VIG MOS SERV'!$C$15:$G$2887,5,FALSE)) -> 1.68 | Z103: 0 | AB103: DMT > 30m = | AC103: 1 | AD103: km | AE103: =IF(AC103<=0.03,"ZERAR!","ok") -> ok
A104: 004019002 | B104: 0 | C104: m³xkm | D104: =CONCATENATE("Transporte de solos - DMT>30 m - qquer tipo de solo, exceto rocha, em caminho de serviço ",AC104," km (1)") -> Transporte de solos - DMT>30 m - qquer tipo de solo, exceto rocha, em caminho de serviço 1 km (1) | Y104: =IF(A104="","",VLOOKUP(A104,'TABELA VIG MOS SERV'!$C$15:$G$2887,5,FALSE)) -> 4.44 | Z104: 0 | AB104: DMT > 30m = | AC104: 1 | AD104: km | AE104: =IF(AC104<=0.03,"ZERAR!","ok") -> ok
A105: 004019003 | B105: 0 | C105: m³xkm | D105: =CONCATENATE("Transporte de solos - DMT>30 m - Rocha, em rodovia ou rua ",AC105," km (2)") -> Transporte de solos - DMT>30 m - Rocha, em rodovia ou rua 1 km (2) | E105: =E101*$AC105 -> 0 | F105: =F101*$AC105 -> 0 | G105: =G101*$AC105 -> 0 | H105: =H101*$AC105 -> 0 | I105: 0 | J105: 0 | K105: 0 | L105: 0 | M105: 0 | N105: 0 | O105: 0 | P105: 0 | Q105: 0 | R105: 0 | S105: 0 | T105: 0 | U105: 0 | V105: 0 | W105: 0 | X105: 0 | Y105: =IF(A105="","",VLOOKUP(A105,'TABELA VIG MOS SERV'!$C$15:$G$2887,5,FALSE)) -> 2.02 | Z105: 0 | AB105: DMT > 30m = | AC105: 1 | AD105: km | AE105: =IF(AC105<=0.03,"ZERAR!","ok") -> ok
A106: 004019004 | B106: 0 | C106: m³xkm | D106: =CONCATENATE("Transporte de solos - DMT>30 m - Rocha, em caminho de serviço ",AC106," km (2)") -> Transporte de solos - DMT>30 m - Rocha, em caminho de serviço 1 km (2) | Y106: =IF(A106="","",VLOOKUP(A106,'TABELA VIG MOS SERV'!$C$15:$G$2887,5,FALSE)) -> 5.33 | Z106: 0 | AB106: DMT > 30m = | AC106: 1 | AD106: km | AE106: ok
A107: 004.013 | B107: 0 | D107: ATERRO/REATERRO EM VALAS E CAVAS | Y107: =IF(A107="","",VLOOKUP(A107,'TABELA VIG MOS SERV'!$C$15:$G$2887,5,FALSE)) -> 0 | Z107: 0
A108: 004013001 | B108: 0 | C108: m³ | D108: Manual | Y108: =IF(A108="","",VLOOKUP(A108,'TABELA VIG MOS SERV'!$C$15:$G$2887,5,FALSE)) -> 11.91 | Z108: 0
A109: 004013002 | B109: 0 | C109: m³ | D109: Mecânico | E109: =SUM(E74:E81) -> 0 | F109: =SUM(F74:F81) -> 0 | G109: 0 | H109: =SUM(H74:H81) -> 0 | I109: 0 | J109: 0 | K109: 0 | L109: 0 | M109: 0 | N109: 0 | O109: 0 | P109: 0 | Q109: 0 | R109: 0 | S109: 0 | T109: 0 | U109: 0 | V109: 0 | W109: 0 | X109: 0 | Y109: =IF(A109="","",VLOOKUP(A109,'TABELA VIG MOS SERV'!$C$15:$G$2887,5,FALSE)) -> 2.42 | Z109: 0
A110: 004.015 | B110: 0 | D110: COMPACTAÇÃO NÃO EM VALAS | Y110: =IF(A110="","",VLOOKUP(A110,'TABELA VIG MOS SERV'!$C$15:$G$2887,5,FALSE)) -> 0 | Z110: 0
A111: 004015001 | B111: 0 | C111: m³ | D111: Sem controle do GC | Y111: =IF(A111="","",VLOOKUP(A111,'TABELA VIG MOS SERV'!$C$15:$G$2887,5,FALSE)) -> 7.93 | Z111: 0
A112: 004015002 | B112: 0 | C112: m³ | D112: Com controle do GC - 95% PN | Y112: =IF(A112="","",VLOOKUP(A112,'TABELA VIG MOS SERV'!$C$15:$G$2887,5,FALSE)) -> 9.84 | Z112: 0
A113: 004015003 | B113: 0 | C113: m³ | D113: Com controle do GC - 100% PN | E113: =E109 -> 0 | F113: =F109 -> 0 | G113: 0 | H113: =H109 -> 0 | I113: 0 | J113: 0 | K113: 0 | L113: 0 | M113: 0 | N113: 0 | O113: 0 | P113: 0 | Q113: 0 | R113: 0 | S113: 0 | T113: 0 | U113: 0 | V113: 0 | W113: 0 | X113: 0 | Y113: =IF(A113="","",VLOOKUP(A113,'TABELA VIG MOS SERV'!$C$15:$G$2887,5,FALSE)) -> 12.82 | Z113: 0
A114: 004.020 | B114: 0 | D114: PROTEÇÃO PARA DESMONTE COM USO DE EXPLOSIVO | Y114: =IF(A114="","",VLOOKUP(A114,'TABELA VIG MOS SERV'!$C$15:$G$2887,5,FALSE)) -> 0 | Z114: 0
A115: 004020001 | B115: 0 | C115: m² | D115: Com rede metálica simples 1/2” | Y115: =IF(A115="","",VLOOKUP(A115,'TABELA VIG MOS SERV'!$C$15:$G$2887,5,FALSE)) -> 24.88 | Z115: 0
A116: 004020002 | B116: 0 | C116: m² | D116: Com rede metálica simples 5/8” | Y116: =IF(A116="","",VLOOKUP(A116,'TABELA VIG MOS SERV'!$C$15:$G$2887,5,FALSE)) -> 29.75 | Z116: 0
A117: 004020003 | B117: 0 | C117: m² | D117: Com rede metálica dupla | Y117: =IF(A117="","",VLOOKUP(A117,'TABELA VIG MOS SERV'!$C$15:$G$2887,5,FALSE)) -> 54.55 | Z117: 0
A118: 004020004 | B118: 0 | C118: m³ | D118: Com terra | Y118: =IF(A118="","",VLOOKUP(A118,'TABELA VIG MOS SERV'!$C$15:$G$2887,5,FALSE)) -> 45.01 | Z118: 0
A119: 004020005 | B119: 0 | C119: m² | D119: Com Manta de Borracha | Y119: =IF(A119="","",VLOOKUP(A119,'TABELA VIG MOS SERV'!$C$15:$G$2887,5,FALSE)) -> 242.06 | Z119: =IF(Y119="","",B119*Y119) -> 0
B120: 0 | D120: TALUDES | Y120: =IF(A120="","",VLOOKUP(A120,'TABELA VIG MOS SERV'!$C$15:$G$2887,5,FALSE)) -> 
A121: 004.012 | B121: 0 | D121: CONFORMAÇÃO DE TALUDES
A122: 004012001 | B122: 0 | C122: m² | D122: Conformação de taludes | Y122: =IF(A122="","",VLOOKUP(A122,'TABELA VIG MOS SERV'!$C$15:$G$2887,5,FALSE)) -> 15.88 | Z122: 0
A123: 015.002 | C123: UD | D123: PAISAGISMO
A124: 015002001 | B124: 0 | C124: m² | D124: Plantio de grama em leiva | Y124: =IF(A124="","",VLOOKUP(A124,'TABELA VIG MOS SERV'!$C$15:$G$2887,5,FALSE)) -> 17.2 | Z124: 0
A125: 015.003 | C125: UD | D125: DRENAGEM
A126: 015003001 | B126: 0 | C126: m | D126: Calha de concreto pré-moldada simples DN 200 | Y126: =IF(A126="","",VLOOKUP(A126,'TABELA VIG MOS SERV'!$C$15:$G$2887,5,FALSE)) -> 40.32 | Z126: 0
A127: 015003002 | B127: 0 | C127: m | D127: Calha de concreto pré-moldada simples DN 300 | Y127: =IF(A127="","",VLOOKUP(A127,'TABELA VIG MOS SERV'!$C$15:$G$2887,5,FALSE)) -> 45.74 | Z127: 0
A128: 015003003 | B128: 0 | C128: m | D128: Calha de concreto pré-moldada simples DN 400 | Y128: =IF(A128="","",VLOOKUP(A128,'TABELA VIG MOS SERV'!$C$15:$G$2887,5,FALSE)) -> 53.17 | Z128: 0
A129: 015003001 | B129: 0 | C129: m | D129: Calha de concreto pré-moldada simples DN 200 | Y129: =IF(A129="","",VLOOKUP(A129,'TABELA VIG MOS SERV'!$C$15:$G$2887,5,FALSE)) -> 40.32 | Z129: 0
A130: 015003002 | B130: 0 | C130: m | D130: Calha de concreto pré-moldada simples DN 300 | Y130: =IF(A130="","",VLOOKUP(A130,'TABELA VIG MOS SERV'!$C$15:$G$2887,5,FALSE)) -> 45.74 | Z130: 0
A131: 015003001 | B131: 0 | C131: m | D131: Calha de concreto pré-moldada simples DN 200 | Y131: =IF(A131="","",VLOOKUP(A131,'TABELA VIG MOS SERV'!$C$15:$G$2887,5,FALSE)) -> 40.32 | Z131: 0
A132: 015003002 | B132: 0 | C132: m | D132: Calha de concreto pré-moldada simples DN 300 | Y132: =IF(A132="","",VLOOKUP(A132,'TABELA VIG MOS SERV'!$C$15:$G$2887,5,FALSE)) -> 45.74 | Z132: 0
A133: 015003003 | B133: 0 | C133: m | D133: Calha de concreto pré-moldada simples DN 400 | Y133: =IF(A133="","",VLOOKUP(A133,'TABELA VIG MOS SERV'!$C$15:$G$2887,5,FALSE)) -> 53.17 | Z133: 0
A134: 015003001 | B134: 0 | C134: m | D134: Calha de concreto pré-moldada simples DN 200 | Y134: =IF(A134="","",VLOOKUP(A134,'TABELA VIG MOS SERV'!$C$15:$G$2887,5,FALSE)) -> 40.32 | Z134: 0
A135: 015003002 | B135: 0 | C135: m | D135: Calha de concreto pré-moldada simples DN 300 | Y135: =IF(A135="","",VLOOKUP(A135,'TABELA VIG MOS SERV'!$C$15:$G$2887,5,FALSE)) -> 45.74 | Z135: 0
A136: 015003001 | B136: 0 | C136: m | D136: Calha de concreto pré-moldada simples DN 200 | Y136: =IF(A136="","",VLOOKUP(A136,'TABELA VIG MOS SERV'!$C$15:$G$2887,5,FALSE)) -> 40.32 | Z136: 0
A137: 015003002 | B137: 0 | C137: m | D137: Calha de concreto pré-moldada simples DN 300 | Y137: =IF(A137="","",VLOOKUP(A137,'TABELA VIG MOS SERV'!$C$15:$G$2887,5,FALSE)) -> 45.74 | Z137: 0
A138: 015003003 | B138: 0 | C138: m | D138: Calha de concreto pré-moldada simples DN 400 | Y138: =IF(A138="","",VLOOKUP(A138,'TABELA VIG MOS SERV'!$C$15:$G$2887,5,FALSE)) -> 53.17 | Z138: 0
B139: =SUM(E139:X139) -> 0 | D139: PREPARO DO TERRENO | Y139: =IF(A139="","",VLOOKUP(A139,'TABELA VIG MOS SERV'!$C$15:$G$2887,5,FALSE)) -> 
A140: 003.004 | D140: PREPARO DO TERRENO
A141: 003004001 | B141: 0 | C141: m² | D141: Roçada fina | Y141: =IF(A141="","",VLOOKUP(A141,'TABELA VIG MOS SERV'!$C$15:$G$2887,5,FALSE)) -> 2.11 | Z141: 0
A142: 003004002 | B142: 0 | C142: m² | D142: Roçada densa | Y142: =IF(A142="","",VLOOKUP(A142,'TABELA VIG MOS SERV'!$C$15:$G$2887,5,FALSE)) -> 3.17 | Z142: 0
A143: 003004003 | B143: 0 | C143: m² | D143: Raspagem de camada vegetal | Y143: =IF(A143="","",VLOOKUP(A143,'TABELA VIG MOS SERV'!$C$15:$G$2887,5,FALSE)) -> 1.27 | Z143: 0
A144: 003004004 | B144: 0 | C144: m² | D144: Destoca manual 0 < d ≤15 cm | Y144: =IF(A144="","",VLOOKUP(A144,'TABELA VIG MOS SERV'!$C$15:$G$2887,5,FALSE)) -> 8.73 | Z144: 0
A145: 003004005 | B145: 0 | C145: ud | D145: Destoca manual 15 < d ≤ 30 cm | Y145: =IF(A145="","",VLOOKUP(A145,'TABELA VIG MOS SERV'!$C$15:$G$2887,5,FALSE)) -> 79.44 | Z145: 0
A146: 003004006 | B146: 0 | C146: ud | D146: Destoca manual 30 < d ≤ 75 cm | Y146: =IF(A146="","",VLOOKUP(A146,'TABELA VIG MOS SERV'!$C$15:$G$2887,5,FALSE)) -> 158.88 | Z146: 0
A147: 003004007 | B147: 0 | C147: m² | D147: Destoca mecânica 0 < d ≤ 15 cm | Y147: =IF(A147="","",VLOOKUP(A147,'TABELA VIG MOS SERV'!$C$15:$G$2887,5,FALSE)) -> 1.52 | Z147: 0
A148: 003004008 | B148: 0 | C148: ud | D148: Destoca mecânica 15 < d ≤ 30 cm | Y148: =IF(A148="","",VLOOKUP(A148,'TABELA VIG MOS SERV'!$C$15:$G$2887,5,FALSE)) -> 21.77 | Z148: 0
A149: 003004009 | B149: 0 | C149: ud | D149: Destoca mecânica 30 < d ≤ 75 cm | Y149: =IF(A149="","",VLOOKUP(A149,'TABELA VIG MOS SERV'!$C$15:$G$2887,5,FALSE)) -> 45.84 | Z149: 0
B150: 0 | D150: PAVIMENTO | Y150: =IF(A150="","",VLOOKUP(A150,'TABELA VIG MOS SERV'!$C$15:$G$2887,5,FALSE)) -> 
A151: 010002001 | B151: 0 | C151: m² | D151: Regularização do subleito | Y151: =IF(A151="","",VLOOKUP(A151,'TABELA VIG MOS SERV'!$C$15:$G$2887,5,FALSE)) -> 0.72 | Z151: 0
A152: 010002002 | B152: 0 | C152: m³ | D152: Base e Sub-base em saibro (espessura = 40 cm) | Y152: =IF(A152="","",VLOOKUP(A152,'TABELA VIG MOS SERV'!$C$15:$G$2887,5,FALSE)) -> 82.34 | Z152: 0
A153: 010002017 | B153: 0 | C153: m² | D153: Revestimento de pedrisco (m²) | Y153: =IF(A153="","",VLOOKUP(A153,'TABELA VIG MOS SERV'!$C$15:$G$2887,5,FALSE)) -> 7.47 | Z153: 0
A154: 010002005 | B154: 0 | C154: m³ | D154: Base em brita graduada | Y154: =IF(A154="","",VLOOKUP(A154,'TABELA VIG MOS SERV'!$C$15:$G$2887,5,FALSE)) -> 100.32 | Z154: 0
A155: 010002006 | B155: 0 | C155: m² | D155: Revestimento com pintura asfáltica (imprimação) | Y155: =IF(A155="","",VLOOKUP(A155,'TABELA VIG MOS SERV'!$C$15:$G$2887,5,FALSE)) -> 13.09 | Z155: 0
A156: 010002007 | B156: 0 | C156: m³ | D156: Revestimento com concreto betuminoso usinado a quente (CBUQ) | Y156: =IF(A156="","",VLOOKUP(A156,'TABELA VIG MOS SERV'!$C$15:$G$2887,5,FALSE)) -> 1216.19 | Z156: 0
A157: 010002030 | B157: 0 | C157: m | D157: Guia-sarjeta de concreto moldada "in loco" | Y157: =IF(A157="","",VLOOKUP(A157,'TABELA VIG MOS SERV'!$C$15:$G$2887,5,FALSE)) -> 81.55 | Z157: 0
B158: 0 | D158: CONTROLE TECNOLÓGICO | Y158: =IF(A158="","",VLOOKUP(A158,'TABELA VIG MOS SERV'!$C$15:$G$2887,5,FALSE)) -> 
A159: 004.022 | B159: 0 | D159: SERVIÇOS GEOTÉCNICOS | Y159: =IF(A159="","",VLOOKUP(A159,'TABELA VIG MOS SERV'!$C$15:$G$2887,5,FALSE)) -> 0 | Z159: 0
A160: 004022001 | B160: 0 | C160: ud | D160: Acesso a Coleta de Amostra Deformada / Indeformada - Poço à pá e picareta (poços c/ h=3,00m) | Y160: =IF(A160="","",VLOOKUP(A160,'TABELA VIG MOS SERV'!$C$15:$G$2887,5,FALSE)) -> 635.42 | Z160: 0
A161: 004022002 | B161: 0 | C161: ud | D161: Acesso a Coleta de Amostra Deformada / Indeformada - Poço com retroescavadeira (poços c/ h=3,00m) | Y161: =IF(A161="","",VLOOKUP(A161,'TABELA VIG MOS SERV'!$C$15:$G$2887,5,FALSE)) -> 353.55 | Z161: 0
A162: 004022003 | B162: 0 | C162: ud | D162: Perfuração com tubo camisa 6" para acesso do amostrador Shelby | Y162: =IF(A162="","",VLOOKUP(A162,'TABELA VIG MOS SERV'!$C$15:$G$2887,5,FALSE)) -> 278.66 | Z162: 0
A163: 004022004 | B163: 0 | C163: ud | D163: Coleta de amostra indeformada (bloco 30x30x30) | Y163: =IF(A163="","",VLOOKUP(A163,'TABELA VIG MOS SERV'!$C$15:$G$2887,5,FALSE)) -> 497.4 | Z163: 0
A164: 004022005 | B164: 0 | C164: ud | D164: Coleta de amostra indeformada com Amostrador Shelby | Y164: =IF(A164="","",VLOOKUP(A164,'TABELA VIG MOS SERV'!$C$15:$G$2887,5,FALSE)) -> 218.97 | Z164: 0
A165: 004022006 | B165: 0 | C165: ud | D165: Coleta de amostra deformada (60Kg) | Y165: =IF(A165="","",VLOOKUP(A165,'TABELA VIG MOS SERV'!$C$15:$G$2887,5,FALSE)) -> 132.4 | Z165: 0
A166: 004.023 | B166: 0 | D166: ENSAIOS GEOTÉCNICOS | Y166: =IF(A166="","",VLOOKUP(A166,'TABELA VIG MOS SERV'!$C$15:$G$2887,5,FALSE)) -> 0 | Z166: 0
A167: 004023001 | B167: 0 | C167: ud | D167: Resistência à compressão simples | Y167: =IF(A167="","",VLOOKUP(A167,'TABELA VIG MOS SERV'!$C$15:$G$2887,5,FALSE)) -> 475.32 | Z167: 0
A168: 004023002 | B168: 0 | C168: ud | D168: Cisalhamento direto - por ponto | Y168: =IF(A168="","",VLOOKUP(A168,'TABELA VIG MOS SERV'!$C$15:$G$2887,5,FALSE)) -> 251.88 | Z168: 0
A169: 004023003 | B169: 0 | C169: ud | D169: Cisalhamento triaxial - CD - por ponto | Y169: =IF(A169="","",VLOOKUP(A169,'TABELA VIG MOS SERV'!$C$15:$G$2887,5,FALSE)) -> 859.16 | Z169: 0
A170: 004023004 | B170: 0 | C170: ud | D170: Cisalhamento triaxial - CU - por ponto | Y170: =IF(A170="","",VLOOKUP(A170,'TABELA VIG MOS SERV'!$C$15:$G$2887,5,FALSE)) -> 859.16 | Z170: 0
A171: 004023005 | B171: 0 | C171: ud | D171: Cisalhamento triaxial - UU - por ponto | Y171: =IF(A171="","",VLOOKUP(A171,'TABELA VIG MOS SERV'!$C$15:$G$2887,5,FALSE)) -> 479.03 | Z171: 0
A172: 004023006 | B172: 0 | C172: ud | D172: Adensamento | Y172: =IF(A172="","",VLOOKUP(A172,'TABELA VIG MOS SERV'!$C$15:$G$2887,5,FALSE)) -> 136.57 | Z172: 0
A173: 004023007 | B173: 0 | C173: ud | D173: Adensamento com colapsividade | Y173: =IF(A173="","",VLOOKUP(A173,'TABELA VIG MOS SERV'!$C$15:$G$2887,5,FALSE)) -> 200.67 | Z173: 0
A174: 004023008 | B174: 0 | C174: ud | D174: Permeabilidade carga constante ou variável (amostras indeformadas ou compactadas) | Y174: =IF(A174="","",VLOOKUP(A174,'TABELA VIG MOS SERV'!$C$15:$G$2887,5,FALSE)) -> 0 | Z174: 0
A175: 004023009 | B175: 0 | C175: ud | D175: Permeabilidade in situ Vertical | Y175: =IF(A175="","",VLOOKUP(A175,'TABELA VIG MOS SERV'!$C$15:$G$2887,5,FALSE)) -> 0 | Z175: 0
A176: 004023010 | B176: 0 | C176: ud | D176: Permeabilidade in situ Horizontal | Y176: =IF(A176="","",VLOOKUP(A176,'TABELA VIG MOS SERV'!$C$15:$G$2887,5,FALSE)) -> 0 | Z176: 0
A177: 004023011 | B177: 0 | C177: ud | D177: Ensaio de granulometria | Y177: =IF(A177="","",VLOOKUP(A177,'TABELA VIG MOS SERV'!$C$15:$G$2887,5,FALSE)) -> 207.75 | Z177: 0
A178: 004023012 | B178: 0 | C178: ud | D178: Ensaio de granulometria com sedimentação | Y178: =IF(A178="","",VLOOKUP(A178,'TABELA VIG MOS SERV'!$C$15:$G$2887,5,FALSE)) -> 0 | Z178: 0
A179: 004023013 | B179: 0 | C179: ud | D179: Ensaio de limite de liquidez | Y179: =IF(A179="","",VLOOKUP(A179,'TABELA VIG MOS SERV'!$C$15:$G$2887,5,FALSE)) -> 129.86 | Z179: 0
A180: 004023014 | B180: 0 | C180: ud | D180: Ensaio de limite de plasticidade | Y180: =IF(A180="","",VLOOKUP(A180,'TABELA VIG MOS SERV'!$C$15:$G$2887,5,FALSE)) -> 0 | Z180: 0
A181: 004023015 | B181: 0 | C181: ud | D181: Ensaio de massa específica real de grãos | Y181: =IF(A181="","",VLOOKUP(A181,'TABELA VIG MOS SERV'!$C$15:$G$2887,5,FALSE)) -> 0 | Z181: 0
A182: 004023016 | B182: 0 | C182: ud | D182: Ensaio de massa específica natural | Y182: =IF(A182="","",VLOOKUP(A182,'TABELA VIG MOS SERV'!$C$15:$G$2887,5,FALSE)) -> 0 | Z182: 0
A183: 004023017 | B183: 0 | C183: ud | D183: Ensaio de umidade natural | Y183: =IF(A183="","",VLOOKUP(A183,'TABELA VIG MOS SERV'!$C$15:$G$2887,5,FALSE)) -> 0 | Z183: 0
A184: 004023018 | B184: 0 | C184: ud | D184: Compactação Proctor Normal | Y184: =IF(A184="","",VLOOKUP(A184,'TABELA VIG MOS SERV'!$C$15:$G$2887,5,FALSE)) -> 0 | Z184: 0
A185: 004023019 | B185: 0 | C185: ud | D185: CBR na umidade ótima | Y185: =IF(A185="","",VLOOKUP(A185,'TABELA VIG MOS SERV'!$C$15:$G$2887,5,FALSE)) -> 0 | Z185: 0
A186: 004023020 | B186: 0 | C186: km | D186: Transporte de amostras coletadas em campo para laboratório | Y186: =IF(A186="","",VLOOKUP(A186,'TABELA VIG MOS SERV'!$C$15:$G$2887,5,FALSE)) -> 7.74 | Z186: =IF(Y186="","",B186*Y186) -> 0
A187: 004.024 | B187: 0 | D187: CONTROLE DA COMPACTAÇÃO DE SOLOS | Y187: =IF(A187="","",VLOOKUP(A187,'TABELA VIG MOS SERV'!$C$15:$G$2887,5,FALSE)) -> 
A188: 004024001 | B188: 0 | C188: ud | D188: Ensaio de compactação (Solo a compactar) | E188: =ROUNDUP(SUM(B69:B71,B111:B113)/1000,0)*9 -> 0 | Y188: =IF(A188="","",VLOOKUP(A188,'TABELA VIG MOS SERV'!$C$15:$G$2887,5,FALSE)) -> 0 | Z188: 0
A189: 004024002 | B189: 0 | C189: ud | D189: Ensaio de umidade e peso específico seco em campo (Solo Compactado) - Determinação do GC | E189: =ROUNDUP(SUM(B69:B71,B111:B113)/500,0)*9 -> 0 | Y189: =IF(A189="","",VLOOKUP(A189,'TABELA VIG MOS SERV'!$C$15:$G$2887,5,FALSE)) -> 0 | Z189: 0
A190: 004024003 | B190: 0 | C190: ud | D190: Ensaio de massa específica aparente (Solo a compactar) | E190: =E188 -> 0 | Y190: =IF(A190="","",VLOOKUP(A190,'TABELA VIG MOS SERV'!$C$15:$G$2887,5,FALSE)) -> 0 | Z190: 0
A191: 004024004 | B191: 0 | C191: ud | D191: Ensaio de granulometria (Solo a compactar) | E191: =ROUNDUP(9*(E188/4),0) -> 0 | Y191: =IF(A191="","",VLOOKUP(A191,'TABELA VIG MOS SERV'!$C$15:$G$2887,5,FALSE)) -> 0 | Z191: 0
A192: 004024005 | B192: 0 | C192: ud | D192: Ensaio de limite de liquidez (Solo a compactar) | E192: =E191 -> 0 | Y192: =IF(A192="","",VLOOKUP(A192,'TABELA VIG MOS SERV'!$C$15:$G$2887,5,FALSE)) -> 0 | Z192: 0
A193: 004024006 | B193: 0 | C193: ud | D193: Ensaio de limite de plasticidade (Solo a compactar) | E193: =E191 -> 0 | Y193: =IF(A193="","",VLOOKUP(A193,'TABELA VIG MOS SERV'!$C$15:$G$2887,5,FALSE)) -> 0 | Z193: 0
A194: 004024007 | B194: 0 | C194: ud | D194: Prova de carga em placa | Y194: =IF(A194="","",VLOOKUP(A194,'TABELA VIG MOS SERV'!$C$15:$G$2887,5,FALSE)) -> 0 | Z194: 0
B195: 0 | D195: ESCORAMENTO | Y195: =IF(A195="","",VLOOKUP(A195,'TABELA VIG MOS SERV'!$C$15:$G$2887,5,FALSE)) -> 
A196: 005.001 | B196: 0 | D196: ESCORAMENTO METÁLICO | Y196: =IF(A196="","",VLOOKUP(A196,'TABELA VIG MOS SERV'!$C$15:$G$2887,5,FALSE)) -> 
A197: 005001001 | B197: 0 | C197: m² | D197: Pontalete metálico | Y197: =IF(A197="","",VLOOKUP(A197,'TABELA VIG MOS SERV'!$C$15:$G$2887,5,FALSE)) -> 14.82 | Z197: 0
A198: 005001002 | B198: 0 | C198: m² | D198: Descontínuo | Y198: =IF(A198="","",VLOOKUP(A198,'TABELA VIG MOS SERV'!$C$15:$G$2887,5,FALSE)) -> 45.2 | Z198: 0
A199: 005001003 | B199: 0 | C199: m² | D199: Contínuo | Y199: =IF(A199="","",VLOOKUP(A199,'TABELA VIG MOS SERV'!$C$15:$G$2887,5,FALSE)) -> 65.31 | Z199: 0
A200: 005001004 | B200: 0 | C200: m² | D200: Contínuo com chapa metálica | Y200: =IF(A200="","",VLOOKUP(A200,'TABELA VIG MOS SERV'!$C$15:$G$2887,5,FALSE)) -> 8.76 | Z200: 0
A201: 005001005 | B201: 0 | C201: m² | D201: Contínuo com chapa e perfis metálicos | Y201: =IF(A201="","",VLOOKUP(A201,'TABELA VIG MOS SERV'!$C$15:$G$2887,5,FALSE)) -> 17.75 | Z201: 0
... 153 more rows

Sheet UC04 - EEAB MATERIAIS (hidden)
A1: Código Material | B1: Qtd. | C1: Unidade | D1: Item Nº | E1: Barrilete de Sucção | G1: Preços Unitário (R$) | H1: Preço Total (R$)
A2: 308272 | C2: ud | D2: 10 | E2: CURVA FD FF 22,5° PARA ESGOTO PN10 DN150 | H2: =ROUND(G2*B2,2) -> 0
A3: 297162 | C3: m | D3: 20 | E3: CURVA FD FF 45° PARA ESGOTO PN10 DN100 | H3: =ROUND(G3*B3,2) -> 0
A4: 286301 | C4: ud | D4: 1 | E4: CURVA FD FF 90° PARA ESGOTO PN10 DN100 | H4: 0
A5: 308114 | C5: ud | D5: 9 | E5: EXTREMIDADE FD FF PN10 PARA ESGOTO DN100 L=0,7M COM ABA DE VEDACAO | H5: 0
A6: 305199 | C6: ud | D6: 8 | E6: EXTREMIDADE FD PF PN10 PARA ESGOTO DN100 L=0,7M COM ABA DE VEDACAO | H6: 0
A7: 305071 | C7: ud | D7: 7 | E7: JUNCAO PARA FD FFF PARA ESGOTO PN10 DN100 | H7: 0
A8: 326859 | C8: cj | D8: 6 | E8: KIT PARAFUSO PORCA ARRUELA LISA ACO INOX ARRUELA VEDACAO FURACAO PARA ESGOTO PN 10 NBR 7675 DN 80 | H8: 0
A9: 326860 | C9: cj | D9: 31 | E9: KIT PARAFUSO PORCA ARRUELA LISA ACO INOX ARRUELA VEDACAO FURACAO PARA ESGOTO PN 10 NBR 7675 DN 100 | H9: 0
A11: Código Material | B11: Qtd. | C11: Unidade | D11: Item Nº | E11: Barrilete de Recalque | G11: Preços Unitário (R$) | H11: Preço Total (R$)
A12: 293006 | C12: 33 | D12: 293006 | E12: TE FD FFF PN10 DN150 | H12: =ROUND(G12*B12,2) -> 0
A13: 297161 | C13: 34 | D13: 297161 | E13: TE REDUCAO FD FFF PN10 DN100 DN050 | H13: 0
A14: 303882 | C14: 35 | D14: 303882 | E14: TOCO DE TUBO FD FF PARA ESGOTO PN10 DN100 L=0,25 | H14: 0
A15: 303320 | C15: 36 | D15: 303320 | E15: TOCO DE TUBO FD FF PARA ESGOTO PN10 DN100 L=0,50 | H15: 0
A16: 302319 | C16: 37 | D16: 302319 | E16: TOCO DE TUBO FD FF PARA ESGOTO PN10 DN150 L=0,50 | H16: 0
A17: 302318 | C17: 38 | D17: 302318 | E17: TUBO FD FF DN150 PN10 L=0,25 MM (CORTADO) | H17: 0
A18: 317591 | C18: 39 | D18: 317591 | E18: TUBO FD FF PARA ESGOTO PN10 DN100 L=1,00M | H18: 0
A19: 326860 | C19: cj | D19: 31 | E19: KIT PARAFUSO PORCA ARRUELA LISA ACO INOX ARRUELA VEDACAO FURACAO PARA ESGOTO PN 10 NBR 7675 DN 100 | H19: 0

Sheet TABELA VIG MOS SERV
C4: MOS 5° EDIÇÃO
C14: Código | D14: Quantitativo | E14: UD | F14: Descrição | G14: Preço unitário | H14: PreçoTotal
C15: 001 | F15: CANTEIRO DE OBRAS
C16: 001.001 | E16: UD | F16: CONSTRUÇÃO DO CANTEIRO
C17: 001001001 | E17: m² | F17: Escritório | G17: =IFERROR(IF(LEN(C17)=9,VLOOKUP(C17,'MOS 5° - EDIÇÂO'!$D$15:$N$3486,7,FALSE),""),"ERRO") -> 747.56 | H17: =ROUND(D17*G17,2) -> 0
C18: 001001002 | E18: m² | F18: Alojamento / Vestiário | G18: =IFERROR(IF(LEN(C18)=9,VLOOKUP(C18,'MOS 5° - EDIÇÂO'!$D$15:$N$3486,7,FALSE),""),"ERRO") -> 573.59 | H18: =ROUND(D18*G18,2) -> 0
C19: 001001003 | E19: m² | F19: Local para refeições / Refeitório | G19: =IFERROR(IF(LEN(C19)=9,VLOOKUP(C19,'MOS 5° - EDIÇÂO'!$D$15:$N$3486,7,FALSE),""),"ERRO") -> 683.26 | H19: 0
C20: 001001004 | E20: m² | F20: Barracão fechado para materiais | G20: =IFERROR(IF(LEN(C20)=9,VLOOKUP(C20,'MOS 5° - EDIÇÂO'!$D$15:$N$3486,7,FALSE),""),"ERRO") -> 458.47 | H20: 0
C21: 001001005 | E21: m² | F21: Barracão aberto | G21: =IFERROR(IF(LEN(C21)=9,VLOOKUP(C21,'MOS 5° - EDIÇÂO'!$D$15:$N$3486,7,FALSE),""),"ERRO") -> 210.99 | H21: 0
C22: 001001006 | E22: m² | F22: Sanitário isolado | G22: =IFERROR(IF(LEN(C22)=9,VLOOKUP(C22,'MOS 5° - EDIÇÂO'!$D$15:$N$3486,7,FALSE),""),"ERRO") -> 882.47 | H22: 0
C23: 001001007 | E23: m² | F23: Chuveiro isolado | G23: =IFERROR(IF(LEN(C23)=9,VLOOKUP(C23,'MOS 5° - EDIÇÂO'!$D$15:$N$3486,7,FALSE),""),"ERRO") -> 679.98 | H23: 0
C24: 001001008 | E24: ud | F24: Sanitário químico | G24: =IFERROR(IF(LEN(C24)=9,VLOOKUP(C24,'MOS 5° - EDIÇÂO'!$D$15:$N$3486,7,FALSE),""),"ERRO") -> 548.55 | H24: 0
C25: 001.002 | E25: UD | F25: ABASTECIMENTO DE ENERGIA ELÉTRICA | H25: 0
C26: 001002001 | E26: ud | F26: Entrada provisória de energia trifásica 70A | G26: =IFERROR(IF(LEN(C26)=9,VLOOKUP(C26,'MOS 5° - EDIÇÂO'!$D$15:$N$3486,7,FALSE),""),"ERRO") -> 2896.46 | H26: 0
C27: 001002002 | E27: dia | F27: Instalação de gerador ≤ 30 kVA | H27: 0
C28: 001002003 | E28: dia | F28: Instalação de gerador entre 30 e 60 kVA | H28: 0
C29: 001.003 | E29: UD | F29: ABASTECIMENTO DE ÁGUA | H29: 0
C30: 001003001 | E30: ud | F30: Entrada provisória de água | G30: =IFERROR(IF(LEN(C30)=9,VLOOKUP(C30,'MOS 5° - EDIÇÂO'!$D$15:$N$3486,7,FALSE),""),"ERRO") -> 196.68 | H30: 0
C31: 001003002 | E31: m | F31: Poço freático sem revestimento | G31: =IFERROR(IF(LEN(C31)=9,VLOOKUP(C31,'MOS 5° - EDIÇÂO'!$D$15:$N$3486,7,FALSE),""),"ERRO") -> 443.54 | H31: 0
C32: 001003003 | E32: m | F32: Poço freático com revestimento com tijolos não rejuntados | G32: =IFERROR(IF(LEN(C32)=9,VLOOKUP(C32,'MOS 5° - EDIÇÂO'!$D$15:$N$3486,7,FALSE),""),"ERRO") -> 598.41 | H32: 0
C33: 001003004 | E33: m | F33: Poço freático com revestimento com tijolos rejuntados | G33: =IFERROR(IF(LEN(C33)=9,VLOOKUP(C33,'MOS 5° - EDIÇÂO'!$D$15:$N$3486,7,FALSE),""),"ERRO") -> 812.97 | H33: 0
C34: 001.004 | E34: UD | F34: PROTEÇÃO DA ÁREA | H34: 0
C35: 001004001 | E35: m | F35: Cerca provisória de arame farpado | G35: =IFERROR(IF(LEN(C35)=9,VLOOKUP(C35,'MOS 5° - EDIÇÂO'!$D$15:$N$3486,7,FALSE),""),"ERRO") -> 53.26 | H35: 0
C36: 001004002 | E36: m | F36: Tapume de tábuas contínuas | G36: =IFERROR(IF(LEN(C36)=9,VLOOKUP(C36,'MOS 5° - EDIÇÂO'!$D$15:$N$3486,7,FALSE),""),"ERRO") -> 159.35 | H36: 0
C37: 001004003 | E37: m | F37: Tapume de chapa de madeira compensada | G37: =IFERROR(IF(LEN(C37)=9,VLOOKUP(C37,'MOS 5° - EDIÇÂO'!$D$15:$N$3486,7,FALSE),""),"ERRO") -> 121.99 | H37: 0
C38: 001004004 | E38: m | F38: Tapume de chapas metálicas | G38: =IFERROR(IF(LEN(C38)=9,VLOOKUP(C38,'MOS 5° - EDIÇÂO'!$D$15:$N$3486,7,FALSE),""),"ERRO") -> 184.64 | H38: 0
C39: 001.005 | E39: UD | F39: PLACA DE OBRA | H39: 0
C40: 001005001 | E40: m² | F40: Em chapa metálica | G40: =IFERROR(IF(LEN(C40)=9,VLOOKUP(C40,'MOS 5° - EDIÇÂO'!$D$15:$N$3486,7,FALSE),""),"ERRO") -> 388.03 | H40: 0
C41: 002 | F41: SERVIÇOS TÉCNICOS | H41: 0
C42: 002.001 | E42: UD | F42: TOPOGRAFIA E GEODÉSIA - SERVIÇOS | H42: 0
C43: 002001001 | E43: m² | F43: Cadastro de unidade existente | G43: =IFERROR(IF(LEN(C43)=9,VLOOKUP(C43,'MOS 5° - EDIÇÂO'!$D$15:$N$3486,7,FALSE),""),"ERRO") -> 2.7 | H43: 0
C44: 002001002 | E44: ud | F44: Cadastro de poço de visita e tubulação existente - esparsas | G44: =IFERROR(IF(LEN(C44)=9,VLOOKUP(C44,'MOS 5° - EDIÇÂO'!$D$15:$N$3486,7,FALSE),""),"ERRO") -> 172.67 | H44: 0
C45: 002001003 | E45: ud | F45: Cadastro de poço de visita e tubulação existente - concentradas | G45: =IFERROR(IF(LEN(C45)=9,VLOOKUP(C45,'MOS 5° - EDIÇÂO'!$D$15:$N$3486,7,FALSE),""),"ERRO") -> 103.69 | H45: 0
C46: 002001004 | E46: ud | F46: Locação de furos de sondagem | G46: =IFERROR(IF(LEN(C46)=9,VLOOKUP(C46,'MOS 5° - EDIÇÂO'!$D$15:$N$3486,7,FALSE),""),"ERRO") -> 44.21 | H46: 0
C47: 002001005 | E47: km | F47: Transporte de Altitude (Cota): extensão < 2 km | G47: =IFERROR(IF(LEN(C47)=9,VLOOKUP(C47,'MOS 5° - EDIÇÂO'!$D$15:$N$3486,7,FALSE),""),"ERRO") -> 568.75 | H47: 0
C48: 002001006 | E48: km | F48: Transporte de Altitude (Cota): 2 km < extensão < 10 km | G48: =IFERROR(IF(LEN(C48)=9,VLOOKUP(C48,'MOS 5° - EDIÇÂO'!$D$15:$N$3486,7,FALSE),""),"ERRO") -> 341.25 | H48: 0
C49: 002001007 | E49: km | F49: Transporte de Altitude (Cota): 10 km < extensão | G49: =IFERROR(IF(LEN(C49)=9,VLOOKUP(C49,'MOS 5° - EDIÇÂO'!$D$15:$N$3486,7,FALSE),""),"ERRO") -> 227.5 | H49: 0
C50: 002001008 | E50: m² | F50: Levantamento planialtimétrico cadastral de área: 0,00 m² < área < 1.000 m² | G50: =IFERROR(IF(LEN(C50)=9,VLOOKUP(C50,'MOS 5° - EDIÇÂO'!$D$15:$N$3486,7,FALSE),""),"ERRO") -> 1.11 | H50: 0
C51: 002001009 | E51: m² | F51: Levantamento planialtimétrico cadastral de área: 1.000 m² < área < 20.000 m² | G51: =IFERROR(IF(LEN(C51)=9,VLOOKUP(C51,'MOS 5° - EDIÇÂO'!$D$15:$N$3486,7,FALSE),""),"ERRO") -> 0.22 | H51: 0
C52: 002001010 | E52: m² | F52: Levantamento planialtimétrico cadastral de área: 20.000 m² < área | G52: =IFERROR(IF(LEN(C52)=9,VLOOKUP(C52,'MOS 5° - EDIÇÂO'!$D$15:$N$3486,7,FALSE),""),"ERRO") -> 0.11 | H52: 0
C53: 002001011 | E53: km | F53: Locação e nivelamento de linha (levantamento planialtimétrico de faixa) - para projeto de água | G53: =IFERROR(IF(LEN(C53)=9,VLOOKUP(C53,'MOS 5° - EDIÇÂO'!$D$15:$N$3486,7,FALSE),""),"ERRO") -> 1733.06 | H53: 0
C54: 002001012 | E54: km | F54: Locação e nivelamento de linha (levantamento planialtimétrico de faixa) - para projeto de esgoto | G54: =IFERROR(IF(LEN(C54)=9,VLOOKUP(C54,'MOS 5° - EDIÇÂO'!$D$15:$N$3486,7,FALSE),""),"ERRO") -> 2976.24 | H54: 0
C55: 002001013 | E55: km | F55: Levantamento planimétrico cadastral de faixa | G55: =IFERROR(IF(LEN(C55)=9,VLOOKUP(C55,'MOS 5° - EDIÇÂO'!$D$15:$N$3486,7,FALSE),""),"ERRO") -> 848.43 | H55: 0
C56: 002001014 | E56: m² | F56: Levantamento planimétrico cadastral de área: 0,00 m² < área < 1.000 m² | G56: =IFERROR(IF(LEN(C56)=9,VLOOKUP(C56,'MOS 5° - EDIÇÂO'!$D$15:$N$3486,7,FALSE),""),"ERRO") -> 0.44 | H56: 0
C57: 002001015 | E57: m² | F57: Levantamento planimétrico cadastral de área: 1.000 m² < área < 20.000 m² | G57: =IFERROR(IF(LEN(C57)=9,VLOOKUP(C57,'MOS 5° - EDIÇÂO'!$D$15:$N$3486,7,FALSE),""),"ERRO") -> 0.08 | H57: 0
C58: 002001016 | E58: m² | F58: Levantamento planimétrico cadastral de área: 20.000 m² < área | G58: =IFERROR(IF(LEN(C58)=9,VLOOKUP(C58,'MOS 5° - EDIÇÂO'!$D$15:$N$3486,7,FALSE),""),"ERRO") -> 0.04 | H58: 0
C59: 002001017 | E59: m | F59: Seção batimétrica - seca | G59: =IFERROR(IF(LEN(C59)=9,VLOOKUP(C59,'MOS 5° - EDIÇÂO'!$D$15:$N$3486,7,FALSE),""),"ERRO") -> 2.93 | H59: 0
C60: 002001018 | E60: m | F60: Seção batimétrica - molhada | G60: =IFERROR(IF(LEN(C60)=9,VLOOKUP(C60,'MOS 5° - EDIÇÂO'!$D$15:$N$3486,7,FALSE),""),"ERRO") -> 10 | H60: 0
C61: 002001019 | E61: m | F61: Seção batimétrica - molhada com auxílio de embarcação | G61: =IFERROR(IF(LEN(C61)=9,VLOOKUP(C61,'MOS 5° - EDIÇÂO'!$D$15:$N$3486,7,FALSE),""),"ERRO") -> 12.82 | H61: 0
C62: 002001020 | E62: km | F62: Locação e levantamento planialtimétrico de seções topográficas | G62: =IFERROR(IF(LEN(C62)=9,VLOOKUP(C62,'MOS 5° - EDIÇÂO'!$D$15:$N$3486,7,FALSE),""),"ERRO") -> 3912.74 | H62: 0
C63: 002001021 | E63: km | F63: Locação, demarcação e levantamento de Curva de Nível | G63: =IFERROR(IF(LEN(C63)=9,VLOOKUP(C63,'MOS 5° - EDIÇÂO'!$D$15:$N$3486,7,FALSE),""),"ERRO") -> 1387.9 | H63: 0
C64: 002001022 | E64: km | F64: Locação de linha | G64: =IFERROR(IF(LEN(C64)=9,VLOOKUP(C64,'MOS 5° - EDIÇÂO'!$D$15:$N$3486,7,FALSE),""),"ERRO") -> 3149.31 | H64: 0
C65: 002001023 | E65: km² | F65: Mapa cadastral | G65: =IFERROR(IF(LEN(C65)=9,VLOOKUP(C65,'MOS 5° - EDIÇÂO'!$D$15:$N$3486,7,FALSE),""),"ERRO") -> 487.85 | H65: 0
C66: 002001024 | E66: km² | F66: Mapa altimétrico | G66: =IFERROR(IF(LEN(C66)=9,VLOOKUP(C66,'MOS 5° - EDIÇÂO'!$D$15:$N$3486,7,FALSE),""),"ERRO") -> 2901.84 | H66: 0
C67: 002001025 | E67: km² | F67: Mapa altimétrico cadastral | G67: =IFERROR(IF(LEN(C67)=9,VLOOKUP(C67,'MOS 5° - EDIÇÂO'!$D$15:$N$3486,7,FALSE),""),"ERRO") -> 3590.23 | H67: 0
C68: 002001026 | E68: km² | F68: Mapa planimétrico cadastral | G68: =IFERROR(IF(LEN(C68)=9,VLOOKUP(C68,'MOS 5° - EDIÇÂO'!$D$15:$N$3486,7,FALSE),""),"ERRO") -> 4311.68 | H68: 0
C69: 002001027 | E69: km² | F69: Mapa planialtimétrico cadastral | G69: =IFERROR(IF(LEN(C69)=9,VLOOKUP(C69,'MOS 5° - EDIÇÂO'!$D$15:$N$3486,7,FALSE),""),"ERRO") -> 8781.11 | H69: 0
C70: 002001028 | E70: ud | F70: Elementos para Legalização (busca documental e identificação do imóvel – Unidades Operacionais ou Lineares em área Rural) | G70: =IFERROR(IF(LEN(C70)=9,VLOOKUP(C70,'MOS 5° - EDIÇÂO'!$D$15:$N$3486,7,FALSE),""),"ERRO") -> 952.58 | H70: 0
C71: 002001029 | E71: ud | F71: Elementos para Legalização (busca documental e identificação do imóvel – Unidades Lineares em área Urbana) | G71: =IFERROR(IF(LEN(C71)=9,VLOOKUP(C71,'MOS 5° - EDIÇÂO'!$D$15:$N$3486,7,FALSE),""),"ERRO") -> 158.79 | H71: 0
C72: 002001030 | E72: m² | F72: Elementos para Legalização - Levantamento Topográfico de limites de imóvel urbano para legalização | G72: =IFERROR(IF(LEN(C72)=9,VLOOKUP(C72,'MOS 5° - EDIÇÂO'!$D$15:$N$3486,7,FALSE),""),"ERRO") -> 0.45 | H72: 0
C73: 002001031 | E73: m² | F73: Elementos para Legalização - Levantamento Topográfico de limites de imóvel Rural para legalização: Área: 0,00 m² < área < 10.000 m² | G73: =IFERROR(IF(LEN(C73)=9,VLOOKUP(C73,'MOS 5° - EDIÇÂO'!$D$15:$N$3486,7,FALSE),""),"ERRO") -> 0.14 | H73: 0
C74: 002001032 | E74: m² | F74: Elementos para Legalização - Levantamento Topográfico de limites de imóvel Rural para legalização: 10.000 m² < área < 100.000 m² | G74: =IFERROR(IF(LEN(C74)=9,VLOOKUP(C74,'MOS 5° - EDIÇÂO'!$D$15:$N$3486,7,FALSE),""),"ERRO") -> 1.33 | H74: 0
C75: 002001033 | E75: m² | F75: Elementos para Legalização - Levantamento Topográfico de limites de imóvel Rural para legalização: 100.000 m² < área | G75: =IFERROR(IF(LEN(C75)=9,VLOOKUP(C75,'MOS 5° - EDIÇÂO'!$D$15:$N$3486,7,FALSE),""),"ERRO") -> 1.48 | H75: 0
C76: 002001034 | E76: ud | F76: Elementos para Legalização - Confecção de Planta de Imóvel Urbano ou Rural | G76: =IFERROR(IF(LEN(C76)=9,VLOOKUP(C76,'MOS 5° - EDIÇÂO'!$D$15:$N$3486,7,FALSE),""),"ERRO") -> 334.02 | H76: 0
C77: 002001035 | E77: ud | F77: Elementos para Legalização - Confecção de Planta Geral de Elementos de Legalização | G77: =IFERROR(IF(LEN(C77)=9,VLOOKUP(C77,'MOS 5° - EDIÇÂO'!$D$15:$N$3486,7,FALSE),""),"ERRO") -> 334.02 | H77: 0
C78: 002001036 | E78: m² | F78: Elementos para Legalização - Confecção de Material e procedimentos para inclusão de imóvel no Cadastro Ambiental Rural (CAR) | G78: =IFERROR(IF(LEN(C78)=9,VLOOKUP(C78,'MOS 5° - EDIÇÂO'!$D$15:$N$3486,7,FALSE),""),"ERRO") -> 0.83 | H78: 0
C79: 002001037 | E79: ud | F79: Elementos para Legalização - (memorial descritivo) | G79: =IFERROR(IF(LEN(C79)=9,VLOOKUP(C79,'MOS 5° - EDIÇÂO'!$D$15:$N$3486,7,FALSE),""),"ERRO") -> 200.41 | H79: 0
C80: 002001038 | E80: km | F80: Atualização de bases cartográficas | G80: =IFERROR(IF(LEN(C80)=9,VLOOKUP(C80,'MOS 5° - EDIÇÂO'!$D$15:$N$3486,7,FALSE),""),"ERRO") -> 1186.22 | H80: 0
C81: 002001039 | E81: m | F81: Locação e nivelamento para assentamento de tubulação de esgoto (Ordem de Serviço para Execução – OSE) | G81: =IFERROR(IF(LEN(C81)=9,VLOOKUP(C81,'MOS 5° - EDIÇÂO'!$D$15:$N$3486,7,FALSE),""),"ERRO") -> 2.78 | H81: 0
C82: 002001040 | E82: ud | F82: Planta Geral com representação de OSE’s | G82: =IFERROR(IF(LEN(C82)=9,VLOOKUP(C82,'MOS 5° - EDIÇÂO'!$D$15:$N$3486,7,FALSE),""),"ERRO") -> 200.95 | H82: =ROUND(D82*G82,2) -> 0
C83: 002001041 | E83: m | F83: Acompanhamento de assentamento de tubulação de esgoto - DN < 400 mm | G83: =IFERROR(IF(LEN(C83)=9,VLOOKUP(C83,'MOS 5° - EDIÇÂO'!$D$15:$N$3486,7,FALSE),""),"ERRO") -> 10.03 | H83: 0
C84: 002001042 | E84: m | F84: Acompanhamento de assentamento de tubulação de esgoto - DN ≥ 400 mm | G84: =IFERROR(IF(LEN(C84)=9,VLOOKUP(C84,'MOS 5° - EDIÇÂO'!$D$15:$N$3486,7,FALSE),""),"ERRO") -> 16.8 | H84: 0
C85: 002001043 | E85: m² | F85: Locação da obra com auxílio de equipamento topográfico | G85: =IFERROR(IF(LEN(C85)=9,VLOOKUP(C85,'MOS 5° - EDIÇÂO'!$D$15:$N$3486,7,FALSE),""),"ERRO") -> 3.25 | H85: 0
C86: 002001044 | E86: m² | F86: Locação da obra sem auxílio de equipamento topográfico | G86: =IFERROR(IF(LEN(C86)=9,VLOOKUP(C86,'MOS 5° - EDIÇÂO'!$D$15:$N$3486,7,FALSE),""),"ERRO") -> 2.91 | H86: 0
C87: 002001045 | E87: m | F87: Reconstituição topográfica de OSE (materialização de piquetes) | G87: =IFERROR(IF(LEN(C87)=9,VLOOKUP(C87,'MOS 5° - EDIÇÂO'!$D$15:$N$3486,7,FALSE),""),"ERRO") -> 1.29 | H87: 0
C88: 002001046 | E88: ud | F88: Monumentação de vértices de controle imediato | G88: =IFERROR(IF(LEN(C88)=9,VLOOKUP(C88,'MOS 5° - EDIÇÂO'!$D$15:$N$3486,7,FALSE),""),"ERRO") -> 199.94 | H88: 0
C89: 002001047 | E89: ud | F89: Monumentação de vértices de controle básico | G89: =IFERROR(IF(LEN(C89)=9,VLOOKUP(C89,'MOS 5° - EDIÇÂO'!$D$15:$N$3486,7,FALSE),""),"ERRO") -> 538.49 | H89: 0
C90: 002001048 | E90: m | F90: Abertura de Picada - vegetação de pequeno porte | G90: =IFERROR(IF(LEN(C90)=9,VLOOKUP(C90,'MOS 5° - EDIÇÂO'!$D$15:$N$3486,7,FALSE),""),"ERRO") -> 0.44 | H90: 0
C91: 002001049 | E91: m | F91: Abertura de Picada - vegetação de grande porte | G91: =IFERROR(IF(LEN(C91)=9,VLOOKUP(C91,'MOS 5° - EDIÇÂO'!$D$15:$N$3486,7,FALSE),""),"ERRO") -> 0.89 | H91: 0
C92: 002.002 | E92: UD | F92: TOPOGRAFIA E GEODÉSIA - ESTADIA DA EQUIPE | H92: 0
C93: 002002001 | E93: m² | F93: Cadastro de unidade existente | G93: =IFERROR(IF(LEN(C93)=9,VLOOKUP(C93,'MOS 5° - EDIÇÂO'!$D$15:$N$3486,7,FALSE),""),"ERRO") -> 0.54 | H93: 0
C94: 002002002 | E94: ud | F94: Cadastro de poço de visita e tubulação existente – esparsas | G94: =IFERROR(IF(LEN(C94)=9,VLOOKUP(C94,'MOS 5° - EDIÇÂO'!$D$15:$N$3486,7,FALSE),""),"ERRO") -> 32.16 | H94: 0
C95: 002002003 | E95: ud | F95: Cadastro de poço de visita e tubulação existente - concentradas | G95: =IFERROR(IF(LEN(C95)=9,VLOOKUP(C95,'MOS 5° - EDIÇÂO'!$D$15:$N$3486,7,FALSE),""),"ERRO") -> 19.49 | H95: 0
C96: 002002004 | E96: ud | F96: Locação de furos de sondagem | G96: =IFERROR(IF(LEN(C96)=9,VLOOKUP(C96,'MOS 5° - EDIÇÂO'!$D$15:$N$3486,7,FALSE),""),"ERRO") -> 7.79 | H96: 0
C97: 002002005 | E97: km | F97: Transporte de Altitude (cota): extensão < 2 km | G97: =IFERROR(IF(LEN(C97)=9,VLOOKUP(C97,'MOS 5° - EDIÇÂO'!$D$15:$N$3486,7,FALSE),""),"ERRO") -> 102.91 | H97: 0
C98: 002002006 | E98: km | F98: Transporte de Altitude (cota): 2 km < extensão < 10 km | G98: =IFERROR(IF(LEN(C98)=9,VLOOKUP(C98,'MOS 5° - EDIÇÂO'!$D$15:$N$3486,7,FALSE),""),"ERRO") -> 341.25 | H98: 0
C99: 002002007 | E99: km | F99: Transporte de Altitude (cota): 10 km < extensão | G99: =IFERROR(IF(LEN(C99)=9,VLOOKUP(C99,'MOS 5° - EDIÇÂO'!$D$15:$N$3486,7,FALSE),""),"ERRO") -> 41.16 | H99: 0
C100: 002002008 | E100: m² | F100: Lev. Planialtimétrico Cadastral de área: 0,00 m² < área < 1.000 m² | G100: =IFERROR(IF(LEN(C100)=9,VLOOKUP(C100,'MOS 5° - EDIÇÂO'!$D$15:$N$3486,7,FALSE),""),"ERRO") -> 0.13 | H100: 0
C101: 002002009 | E101: m² | F101: Lev. Planialtimétrico Cadastral de área: 1.000 m² < área < 20.000 m² | G101: =IFERROR(IF(LEN(C101)=9,VLOOKUP(C101,'MOS 5° - EDIÇÂO'!$D$15:$N$3486,7,FALSE),""),"ERRO") -> 0.02 | H101: 0
C102: 002002010 | E102: m² | F102: Lev. Planialtimétrico Cadastral de área: 20.000 m² < área | G102: =IFERROR(IF(LEN(C102)=9,VLOOKUP(C102,'MOS 5° - EDIÇÂO'!$D$15:$N$3486,7,FALSE),""),"ERRO") -> 0.01 | H102: 0
C103: 002002011 | E103: km | F103: Loc. e nivelamento de linha (levantamento planialtimétrico de faixa) - para projeto de água | G103: =IFERROR(IF(LEN(C103)=9,VLOOKUP(C103,'MOS 5° - EDIÇÂO'!$D$15:$N$3486,7,FALSE),""),"ERRO") -> 302.68 | H103: 0
C104: 002002012 | E104: km | F104: Loc. e nivelamento de linha (levantamento planialtimétrico de faixa) - para projeto de esgoto | G104: =IFERROR(IF(LEN(C104)=9,VLOOKUP(C104,'MOS 5° - EDIÇÂO'!$D$15:$N$3486,7,FALSE),""),"ERRO") -> 514.56 | H104: 0
C105: 002002013 | E105: km | F105: Levantamento planimétrico cadastral de faixa | G105: =IFERROR(IF(LEN(C105)=9,VLOOKUP(C105,'MOS 5° - EDIÇÂO'!$D$15:$N$3486,7,FALSE),""),"ERRO") -> 102.91 | H105: 0
C106: 002002014 | E106: m² | F106: Levantamento Planimétrico Cadastral de Área: 0,00 m² < área < 1.000 m² | G106: =IFERROR(IF(LEN(C106)=9,VLOOKUP(C106,'MOS 5° - EDIÇÂO'!$D$15:$N$3486,7,FALSE),""),"ERRO") -> 0.06 | H106: 0
C107: 002002015 | E107: m² | F107: Levantamento Planimétrico Cadastral de Área: 1.000 m² < área < 20.000 m² | G107: =IFERROR(IF(LEN(C107)=9,VLOOKUP(C107,'MOS 5° - EDIÇÂO'!$D$15:$N$3486,7,FALSE),""),"ERRO") -> 0.08 | H107: 0
C108: 002002016 | E108: m² | F108: Levantamento Planimétrico Cadastral de Área: 20.000 m² < área | G108: =IFERROR(IF(LEN(C108)=9,VLOOKUP(C108,'MOS 5° - EDIÇÂO'!$D$15:$N$3486,7,FALSE),""),"ERRO") -> 0.01 | H108: 0
C109: 002002017 | E109: m | F109: Seção Batimétrica - seca | G109: =IFERROR(IF(LEN(C109)=9,VLOOKUP(C109,'MOS 5° - EDIÇÂO'!$D$15:$N$3486,7,FALSE),""),"ERRO") -> 0.5 | H109: 0
C110: 002002018 | E110: m | F110: Seção Batimétrica - molhada | G110: =IFERROR(IF(LEN(C110)=9,VLOOKUP(C110,'MOS 5° - EDIÇÂO'!$D$15:$N$3486,7,FALSE),""),"ERRO") -> 2.09 | H110: 0
C111: 002002019 | E111: m | F111: Seções Batimétricas – molhada com embarcação | G111: =IFERROR(IF(LEN(C111)=9,VLOOKUP(C111,'MOS 5° - EDIÇÂO'!$D$15:$N$3486,7,FALSE),""),"ERRO") -> 2.09 | H111: 0
C112: 002002020 | E112: km | F112: Locação e levantamento planialtimétrico de seções topográficas | G112: =IFERROR(IF(LEN(C112)=9,VLOOKUP(C112,'MOS 5° - EDIÇÂO'!$D$15:$N$3486,7,FALSE),""),"ERRO") -> 329.85 | H112: 0
C113: 002002021 | E113: km | F113: Locação, demarcação e levantamento de Curva de Nível | G113: =IFERROR(IF(LEN(C113)=9,VLOOKUP(C113,'MOS 5° - EDIÇÂO'!$D$15:$N$3486,7,FALSE),""),"ERRO") -> 64.32 | H113: 0
C114: 002002022 | E114: km | F114: Locação de linha | G114: =IFERROR(IF(LEN(C114)=9,VLOOKUP(C114,'MOS 5° - EDIÇÂO'!$D$15:$N$3486,7,FALSE),""),"ERRO") -> 334.12 | H114: 0
C115: 002002023 | E115: km² | F115: Mapa cadastral | G115: =IFERROR(IF(LEN(C115)=9,VLOOKUP(C115,'MOS 5° - EDIÇÂO'!$D$15:$N$3486,7,FALSE),""),"ERRO") -> 98.94 | H115: 0
C116: 002002024 | E116: km² | F116: Mapa altimétrico | G116: =IFERROR(IF(LEN(C116)=9,VLOOKUP(C116,'MOS 5° - EDIÇÂO'!$D$15:$N$3486,7,FALSE),""),"ERRO") -> 428.8 | H116: 0
C117: 002002025 | E117: km² | F117: Mapa altimétrico cadastral | G117: =IFERROR(IF(LEN(C117)=9,VLOOKUP(C117,'MOS 5° - EDIÇÂO'!$D$15:$N$3486,7,FALSE),""),"ERRO") -> 559.3 | H117: 0
C118: 002002026 | E118: km² | F118: Mapa planimétrico cadastral | G118: =IFERROR(IF(LEN(C118)=9,VLOOKUP(C118,'MOS 5° - EDIÇÂO'!$D$15:$N$3486,7,FALSE),""),"ERRO") -> 714.66 | H118: 0
C119: 002002027 | E119: km² | F119: Mapa planialtimétrico cadastral | G119: =IFERROR(IF(LEN(C119)=9,VLOOKUP(C119,'MOS 5° - EDIÇÂO'!$D$15:$N$3486,7,FALSE),""),"ERRO") -> 1608 | H119: 0
C120: 002002028 | E120: ud | F120: Elementos para legalização (busca documental e identificação do imóvel – Unidades Operacionais ou Lineares em área Rural) | G120: =IFERROR(IF(LEN(C120)=9,VLOOKUP(C120,'MOS 5° - EDIÇÂO'!$D$15:$N$3486,7,FALSE),""),"ERRO") -> 85.76 | H120: 0
C121: 002002029 | E121: ud | F121: Elementos para legalização (busca documental e identificação do imóvel – Unidades Lineares em área Urbana) | G121: =IFERROR(IF(LEN(C121)=9,VLOOKUP(C121,'MOS 5° - EDIÇÂO'!$D$15:$N$3486,7,FALSE),""),"ERRO") -> 14.29 | H121: 0
C122: 002002030 | E122: m² | F122: Elementos para legalização Levantamento Topográfico de limites de imóvel urbano para legalização | G122: =IFERROR(IF(LEN(C122)=9,VLOOKUP(C122,'MOS 5° - EDIÇÂO'!$D$15:$N$3486,7,FALSE),""),"ERRO") -> 0.05 | H122: 0
C123: 002002031 | E123: m² | F123: Elementos para legalização Levantamento Topográfico de limites de imóvel Rural para legalização: Área: 0,00 m² < área < 10.000 m² | G123: =IFERROR(IF(LEN(C123)=9,VLOOKUP(C123,'MOS 5° - EDIÇÂO'!$D$15:$N$3486,7,FALSE),""),"ERRO") -> 0.05 | H123: 0
C124: 002002032 | E124: m² | F124: Elementos para legalização Levantamento Topográfico de limites de imóvel Rural para legalização: 10.000 m² < área < 100.000 m² | G124: =IFERROR(IF(LEN(C124)=9,VLOOKUP(C124,'MOS 5° - EDIÇÂO'!$D$15:$N$3486,7,FALSE),""),"ERRO") -> 0.02 | H124: 0
C125: 002002033 | E125: m² | F125: Elementos para legalização Levantamento Topográfico de limites de imóvel Rural para legalização: 100.000 m² < área | G125: =IFERROR(IF(LEN(C125)=9,VLOOKUP(C125,'MOS 5° - EDIÇÂO'!$D$15:$N$3486,7,FALSE),""),"ERRO") -> 0.06 | H125: 0
C126: 002002036 | E126: m² | F126: Elementos para legalização Confecção de Material e procedimentos para inclusão de imóvel no Cadastro Ambiental Rural (CAR) | G126: =IFERROR(IF(LEN(C126)=9,VLOOKUP(C126,'MOS 5° - EDIÇÂO'!$D$15:$N$3486,7,FALSE),""),"ERRO") -> 0.12 | H126: 0
C127: 002002038 | E127: km | F127: Atualização de bases cartográficas | G127: =IFERROR(IF(LEN(C127)=9,VLOOKUP(C127,'MOS 5° - EDIÇÂO'!$D$15:$N$3486,7,FALSE),""),"ERRO") -> 114.34 | H127: 0
C128: 002002039 | E128: m | F128: Locação e nivelamento para assentamento de tubulação de esgoto (Ordem de serviço para execução – OSE) | G128: =IFERROR(IF(LEN(C128)=9,VLOOKUP(C128,'MOS 5° - EDIÇÂO'!$D$15:$N$3486,7,FALSE),""),"ERRO") -> 0.47 | H128: 0
C129: 002002041 | E129: m | F129: Acompanhamento de assentamento de tubulação de esgoto - DN < 400 mm | G129: =IFERROR(IF(LEN(C129)=9,VLOOKUP(C129,'MOS 5° - EDIÇÂO'!$D$15:$N$3486,7,FALSE),""),"ERRO") -> 2.77 | H129: 0
C130: 002002042 | E130: m | F130: Acompanhamento de assentamento de tubulação de esgoto - DN ≥ 400 mm | G130: =IFERROR(IF(LEN(C130)=9,VLOOKUP(C130,'MOS 5° - EDIÇÂO'!$D$15:$N$3486,7,FALSE),""),"ERRO") -> 4.63 | H130: 0
C131: 002002043 | E131: m² | F131: Locação da obra com auxilio de equipamento topográfico | G131: =IFERROR(IF(LEN(C131)=9,VLOOKUP(C131,'MOS 5° - EDIÇÂO'!$D$15:$N$3486,7,FALSE),""),"ERRO") -> 0.55 | H131: 0
C132: 002002044 | E132: m² | F132: Locação da obra sem auxilio de equipamento topográfico | G132: =IFERROR(IF(LEN(C132)=9,VLOOKUP(C132,'MOS 5° - EDIÇÂO'!$D$15:$N$3486,7,FALSE),""),"ERRO") -> 0.48 | H132: 0
C133: 002002045 | E133: m | F133: Reconstituição Topográfica de OSE (Materialização de piquetes) | G133: =IFERROR(IF(LEN(C133)=9,VLOOKUP(C133,'MOS 5° - EDIÇÂO'!$D$15:$N$3486,7,FALSE),""),"ERRO") -> 0.24 | H133: 0
C134: 002002046 | E134: ud | F134: Monumentação de Vértices de Controle Imediato | G134: =IFERROR(IF(LEN(C134)=9,VLOOKUP(C134,'MOS 5° - EDIÇÂO'!$D$15:$N$3486,7,FALSE),""),"ERRO") -> 35.24 | H134: 0
C135: 002002047 | E135: ud | F135: Monumentação de Vértices de Controle Básico | G135: =IFERROR(IF(LEN(C135)=9,VLOOKUP(C135,'MOS 5° - EDIÇÂO'!$D$15:$N$3486,7,FALSE),""),"ERRO") -> 105.01 | H135: 0
C136: 002002048 | E136: m | F136: Abertura de picada - vegetação de pequeno porte | G136: =IFERROR(IF(LEN(C136)=9,VLOOKUP(C136,'MOS 5° - EDIÇÂO'!$D$15:$N$3486,7,FALSE),""),"ERRO") -> 0.08 | H136: 0
C137: 002002049 | E137: m | F137: Abertura de picada - vegetação de grande porte | G137: =IFERROR(IF(LEN(C137)=9,VLOOKUP(C137,'MOS 5° - EDIÇÂO'!$D$15:$N$3486,7,FALSE),""),"ERRO") -> 0.16 | H137: 0
C138: 002.003 | E138: UD | F138: TOPOGRAFIA E GEODÉSIA - TRANSPORTE DA EQUIPE | H138: 0
C139: 002003001 | E139: km | F139: Deslocamento da equipe topográfica / equipe de serviços técnicos especializados | G139: =IFERROR(IF(LEN(C139)=9,VLOOKUP(C139,'MOS 5° - EDIÇÂO'!$D$15:$N$3486,7,FALSE),""),"ERRO") -> 5.11 | H139: 0
C140: 002.004 | E140: UD | F140: SONDAGEM A PERCUSSÃO | H140: 0
C141: 002004001 | E141: m | F141: Perfuração em solo (SPT) sem estadia da equipe - Cidade Pólo | G141: =IFERROR(IF(LEN(C141)=9,VLOOKUP(C141,'MOS 5° - EDIÇÂO'!$D$15:$N$3486,7,FALSE),""),"ERRO") -> 189.51 | H141: 0
C142: 002004002 | E142: m | F142: Perfuração em solo (SPT) com estadia da equipe | G142: =IFERROR(IF(LEN(C142)=9,VLOOKUP(C142,'MOS 5° - EDIÇÂO'!$D$15:$N$3486,7,FALSE),""),"ERRO") -> 258.41 | H142: 0
C143: 002004003 | E143: ud | F143: Transporte de equipe de sondagem a percussão e de topografia – distância até 20km – Cidade Pólo | G143: =IFERROR(IF(LEN(C143)=9,VLOOKUP(C143,'MOS 5° - EDIÇÂO'!$D$15:$N$3486,7,FALSE),""),"ERRO") -> 438.61 | H143: 0
C144: 002004004 | E144: km | F144: Transporte de equipe de sondagem a percussão e de topografia – distância acima de 20km até 100km | G144: =IFERROR(IF(LEN(C144)=9,VLOOKUP(C144,'MOS 5° - EDIÇÂO'!$D$15:$N$3486,7,FALSE),""),"ERRO") -> 2193.05 | H144: 0
C145: 002004005 | E145: km | F145: Transporte de equipe de sondagem a percussão e de topografia – distância acima de 100km até 200km | G145: =IFERROR(IF(LEN(C145)=9,VLOOKUP(C145,'MOS 5° - EDIÇÂO'!$D$15:$N$3486,7,FALSE),""),"ERRO") -> 4386.1 | H145: 0
C146: 002004006 | E146: km | F146: Transporte de equipe de sondagem a percussão e de topografia – distância acima de 200km até 300km | G146: =IFERROR(IF(LEN(C146)=9,VLOOKUP(C146,'MOS 5° - EDIÇÂO'!$D$15:$N$3486,7,FALSE),""),"ERRO") -> 6579.16 | H146: =ROUND(D146*G146,2) -> 0
C147: 002.005 | E147: UD | F147: SONDAGEM ROTATIVA | H147: 0
C148: 002005001 | E148: m | F148: Perfuração em solo – SPT (sem estadia da equipe - Cidade Pólo) | G148: =IFERROR(IF(LEN(C148)=9,VLOOKUP(C148,'MOS 5° - EDIÇÂO'!$D$15:$N$3486,7,FALSE),""),"ERRO") -> 197.17 | H148: 0
C149: 002005002 | E149: m | F149: Em rocha alterada - BX (sem estadia da equipe - Cidade Pólo) | G149: =IFERROR(IF(LEN(C149)=9,VLOOKUP(C149,'MOS 5° - EDIÇÂO'!$D$15:$N$3486,7,FALSE),""),"ERRO") -> 350.39 | H149: 0
C150: 002005003 | E150: m | F150: Em rocha (arenito, siltito, folhelho e calcário) - BX (sem estadia da equipe - Cidade Pólo) | G150: =IFERROR(IF(LEN(C150)=9,VLOOKUP(C150,'MOS 5° - EDIÇÂO'!$D$15:$N$3486,7,FALSE),""),"ERRO") -> 371.29 | H150: 0
C151: 002005004 | E151: m | F151: Em rocha (basalto, diabásio e granito) - BX (sem estadia da equipe - Cidade Pólo) | G151: =IFERROR(IF(LEN(C151)=9,VLOOKUP(C151,'MOS 5° - EDIÇÂO'!$D$15:$N$3486,7,FALSE),""),"ERRO") -> 519.81 | H151: 0
C152: 002005005 | E152: m | F152: Em rocha (gnaisse, migmatito) - BX (sem estadia da equipe - Cidade Pólo) | G152: =IFERROR(IF(LEN(C152)=9,VLOOKUP(C152,'MOS 5° - EDIÇÂO'!$D$15:$N$3486,7,FALSE),""),"ERRO") -> 727.74 | H152: 0
C153: 002005006 | E153: m | F153: Perfuração em solo – SPT (com estadia da equipe) | G153: =IFERROR(IF(LEN(C153)=9,VLOOKUP(C153,'MOS 5° - EDIÇÂO'!$D$15:$N$3486,7,FALSE),""),"ERRO") -> 266.08 | H153: 0
C154: 002005007 | E154: m | F154: Em rocha alterada - BX (com estadia da equipe) | G154: =IFERROR(IF(LEN(C154)=9,VLOOKUP(C154,'MOS 5° - EDIÇÂO'!$D$15:$N$3486,7,FALSE),""),"ERRO") -> 352.23 | H154: 0
C155: 002005008 | E155: m | F155: Em rocha (arenito, siltito, folhelho e calcário) - BX (com estadia da equipe) | G155: =IFERROR(IF(LEN(C155)=9,VLOOKUP(C155,'MOS 5° - EDIÇÂO'!$D$15:$N$3486,7,FALSE),""),"ERRO") -> 373.23 | H155: 0
C156: 002005009 | E156: m | F156: Em rocha (basalto, diabásio e granito) - BX (com estadia da equipe) | G156: =IFERROR(IF(LEN(C156)=9,VLOOKUP(C156,'MOS 5° - EDIÇÂO'!$D$15:$N$3486,7,FALSE),""),"ERRO") -> 522.52 | H156: 0
C157: 002005010 | E157: m | F157: Em rocha (gnaisse, migmatito) - BX (com estadia da equipe) | G157: =IFERROR(IF(LEN(C157)=9,VLOOKUP(C157,'MOS 5° - EDIÇÂO'!$D$15:$N$3486,7,FALSE),""),"ERRO") -> 731.52 | H157: 0
C158: 002005011 | E158: ud | F158: Transporte de equipe de sondagem mista e de topografia – distância até 20km – Cidade Pólo | G158: =IFERROR(IF(LEN(C158)=9,VLOOKUP(C158,'MOS 5° - EDIÇÂO'!$D$15:$N$3486,7,FALSE),""),"ERRO") -> 438.61 | H158: 0
C159: 002005012 | E159: km | F159: Transporte de equipe de sondagem mista e de topografia – distância acima de 20km até 100km | G159: =IFERROR(IF(LEN(C159)=9,VLOOKUP(C159,'MOS 5° - EDIÇÂO'!$D$15:$N$3486,7,FALSE),""),"ERRO") -> 2193.05 | H159: 0
C160: 002005013 | E160: km | F160: Transporte de equipe de sondagem mista e de topografia – distância acima de 100km até 200km | G160: =IFERROR(IF(LEN(C160)=9,VLOOKUP(C160,'MOS 5° - EDIÇÂO'!$D$15:$N$3486,7,FALSE),""),"ERRO") -> 4386.1 | H160: 0
C161: 002005014 | E161: km | F161: Transporte de equipe de sondagem mista e de topografia – distância acima de 200km até 300km | G161: =IFERROR(IF(LEN(C161)=9,VLOOKUP(C161,'MOS 5° - EDIÇÂO'!$D$15:$N$3486,7,FALSE),""),"ERRO") -> 6579.16 | H161: 0
C162: 002.006 | E162: UD | F162: SONDAGEM A TRADO | H162: 0
C163: 002006001 | E163: m | F163: Perfuração em solo (trado) sem estadia da equipe - Cidade Pólo | G163: =IFERROR(IF(LEN(C163)=9,VLOOKUP(C163,'MOS 5° - EDIÇÂO'!$D$15:$N$3486,7,FALSE),""),"ERRO") -> 54.33 | H163: 0
C164: 002006002 | E164: m | F164: Perfuração em solo (trado) com estadia da equipe | G164: =IFERROR(IF(LEN(C164)=9,VLOOKUP(C164,'MOS 5° - EDIÇÂO'!$D$15:$N$3486,7,FALSE),""),"ERRO") -> 85.78 | H164: 0
C165: 002006003 | E165: km | F165: Transporte de equipe de sondagem a trado e de topografia – distância até 20km – Cidade Pólo | G165: =IFERROR(IF(LEN(C165)=9,VLOOKUP(C165,'MOS 5° - EDIÇÂO'!$D$15:$N$3486,7,FALSE),""),"ERRO") -> 246 | H165: 0
C166: 002006004 | E166: km | F166: Transporte de equipe de sondagem a trado e de topografia – distância acima de 20km até 100km | G166: =IFERROR(IF(LEN(C166)=9,VLOOKUP(C166,'MOS 5° - EDIÇÂO'!$D$15:$N$3486,7,FALSE),""),"ERRO") -> 1230 | H166: 0
C167: 002006005 | E167: km | F167: Transporte de equipe de sondagem a trado e de topografia – distância acima de 100km até 200km | G167: =IFERROR(IF(LEN(C167)=9,VLOOKUP(C167,'MOS 5° - EDIÇÂO'!$D$15:$N$3486,7,FALSE),""),"ERRO") -> 2460 | H167: 0
C168: 002006006 | E168: km | F168: Transporte de equipe de sondagem a trado e de topografia – distância acima de 200km até 300km | G168: =IFERROR(IF(LEN(C168)=9,VLOOKUP(C168,'MOS 5° - EDIÇÂO'!$D$15:$N$3486,7,FALSE),""),"ERRO") -> 3690.01 | H168: 0
C169: 002.007 | E169: UD | F169: CADASTRO DE OBRAS | H169: 0
C170: 002007001 | E170: m | F170: Cadastro linear de água - CAD | G170: =IFERROR(IF(LEN(C170)=9,VLOOKUP(C170,'MOS 5° - EDIÇÂO'!$D$15:$N$3486,7,FALSE),""),"ERRO") -> 0.54 | H170: 0
C171: 002007002 | E171: m | F171: Cadastro linear de esgoto - CAD | G171: =IFERROR(IF(LEN(C171)=9,VLOOKUP(C171,'MOS 5° - EDIÇÂO'!$D$15:$N$3486,7,FALSE),""),"ERRO") -> 0.54 | H171: 0
C172: 002007003 | E172: m | F172: Cadastro linear de água - CADAGUA | G172: =IFERROR(IF(LEN(C172)=9,VLOOKUP(C172,'MOS 5° - EDIÇÂO'!$D$15:$N$3486,7,FALSE),""),"ERRO") -> 0.54 | H172: 0
C173: 002007004 | E173: m | F173: Cadastro linear de esgoto - CADESG | G173: =IFERROR(IF(LEN(C173)=9,VLOOKUP(C173,'MOS 5° - EDIÇÂO'!$D$15:$N$3486,7,FALSE),""),"ERRO") -> 0.54 | H173: 0
C174: 002007005 | E174: ud | F174: Cadastro de obra localizada "as built" | G174: =IFERROR(IF(LEN(C174)=9,VLOOKUP(C174,'MOS 5° - EDIÇÂO'!$D$15:$N$3486,7,FALSE),""),"ERRO") -> 160.37 | H174: 0
C175: 003 | F175: SERVIÇOS PRELIMINARES | H175: 0
C176: 003.001 | E176: UD | F176: PESQUISA E REMANEJAMENTO DE INTERFERÊNCIAS | H176: 0
C177: 003001001 | E177: m³ | F177: Pesquisa | G177: =IFERROR(IF(LEN(C177)=9,VLOOKUP(C177,'MOS 5° - EDIÇÂO'!$D$15:$N$3486,7,FALSE),""),"ERRO") -> 140.91 | H177: 0
C178: 003001002 | E178: m | F178: Remanejamento de galerias DN 200 | G178: =IFERROR(IF(LEN(C178)=9,VLOOKUP(C178,'MOS 5° - EDIÇÂO'!$D$15:$N$3486,7,FALSE),""),"ERRO") -> 52.21 | H178: 0
C179: 003001003 | E179: m | F179: Remanejamento de galerias DN 300 | G179: =IFERROR(IF(LEN(C179)=9,VLOOKUP(C179,'MOS 5° - EDIÇÂO'!$D$15:$N$3486,7,FALSE),""),"ERRO") -> 56.75 | H179: 0
C180: 003001004 | E180: m | F180: Remanejamento de galerias DN 400 | G180: =IFERROR(IF(LEN(C180)=9,VLOOKUP(C180,'MOS 5° - EDIÇÂO'!$D$15:$N$3486,7,FALSE),""),"ERRO") -> 63.56 | H180: 0
C181: 003001005 | E181: m | F181: Remanejamento de galerias DN 500 | G181: =IFERROR(IF(LEN(C181)=9,VLOOKUP(C181,'MOS 5° - EDIÇÂO'!$D$15:$N$3486,7,FALSE),""),"ERRO") -> 66.59 | H181: 0
C182: 003001006 | E182: m | F182: Remanejamento de galerias DN 600 | G182: =IFERROR(IF(LEN(C182)=9,VLOOKUP(C182,'MOS 5° - EDIÇÂO'!$D$15:$N$3486,7,FALSE),""),"ERRO") -> 77.09 | H182: 0
C183: 003001007 | E183: m | F183: Remanejamento de galerias DN 800 | G183: =IFERROR(IF(LEN(C183)=9,VLOOKUP(C183,'MOS 5° - EDIÇÂO'!$D$15:$N$3486,7,FALSE),""),"ERRO") -> 103.37 | H183: 0
C184: 003001008 | E184: m | F184: Remanejamento de galerias DN 1000 | G184: =IFERROR(IF(LEN(C184)=9,VLOOKUP(C184,'MOS 5° - EDIÇÂO'!$D$15:$N$3486,7,FALSE),""),"ERRO") -> 141.88 | H184: 0
C185: 003001009 | E185: m | F185: Remanejamento de galerias DN 1200 | G185: =IFERROR(IF(LEN(C185)=9,VLOOKUP(C185,'MOS 5° - EDIÇÂO'!$D$15:$N$3486,7,FALSE),""),"ERRO") -> 208.48 | H185: 0
C186: 003.002 | E186: UD | F186: ACESSO PROVISÓRIO | H186: 0
C187: 003002001 | E187: m² | F187: Acesso provisório | G187: =IFERROR(IF(LEN(C187)=9,VLOOKUP(C187,'MOS 5° - EDIÇÂO'!$D$15:$N$3486,7,FALSE),""),"ERRO") -> 6.02 | H187: 0
C188: 003.003 | E188: UD | F188: ESTIVA | H188: 0
C189: 003003001 | E189: m³ | F189: Estiva de madeira para acesso | G189: =IFERROR(IF(LEN(C189)=9,VLOOKUP(C189,'MOS 5° - EDIÇÂO'!$D$15:$N$3486,7,FALSE),""),"ERRO") -> 657.22 | H189: 0
C190: 003003002 | E190: m³ | F190: Estiva de madeira para acesso - com material local | G190: =IFERROR(IF(LEN(C190)=9,VLOOKUP(C190,'MOS 5° - EDIÇÂO'!$D$15:$N$3486,7,FALSE),""),"ERRO") -> 199.71 | H190: 0
C191: 003003003 | E191: m | F191: Estiva de madeira para suporte de retroescavadeira | G191: =IFERROR(IF(LEN(C191)=9,VLOOKUP(C191,'MOS 5° - EDIÇÂO'!$D$15:$N$3486,7,FALSE),""),"ERRO") -> 19.02 | H191: 0
C192: 003003004 | E192: m | F192: Estiva de madeira para suporte de escavadeira hidráulica | G192: =IFERROR(IF(LEN(C192)=9,VLOOKUP(C192,'MOS 5° - EDIÇÂO'!$D$15:$N$3486,7,FALSE),""),"ERRO") -> 25.79 | H192: 0
C193: 003.004 | E193: UD | F193: PREPARO DO TERRENO | H193: 0
C194: 003004001 | E194: m² | F194: Roçada fina | G194: =IFERROR(IF(LEN(C194)=9,VLOOKUP(C194,'MOS 5° - EDIÇÂO'!$D$15:$N$3486,7,FALSE),""),"ERRO") -> 2.11 | H194: 0
C195: 003004002 | E195: m² | F195: Roçada densa | G195: =IFERROR(IF(LEN(C195)=9,VLOOKUP(C195,'MOS 5° - EDIÇÂO'!$D$15:$N$3486,7,FALSE),""),"ERRO") -> 3.17 | H195: 0
C196: 003004003 | E196: m² | F196: Raspagem de camada vegetal | G196: =IFERROR(IF(LEN(C196)=9,VLOOKUP(C196,'MOS 5° - EDIÇÂO'!$D$15:$N$3486,7,FALSE),""),"ERRO") -> 1.27 | H196: 0
C197: 003004004 | E197: m² | F197: Destoca manual 0 < d ≤15 cm | G197: =IFERROR(IF(LEN(C197)=9,VLOOKUP(C197,'MOS 5° - EDIÇÂO'!$D$15:$N$3486,7,FALSE),""),"ERRO") -> 8.73 | H197: 0
C198: 003004005 | E198: ud | F198: Destoca manual 15 < d ≤ 30 cm | G198: =IFERROR(IF(LEN(C198)=9,VLOOKUP(C198,'MOS 5° - EDIÇÂO'!$D$15:$N$3486,7,FALSE),""),"ERRO") -> 79.44 | H198: 0
C199: 003004006 | E199: ud | F199: Destoca manual 30 < d ≤ 75 cm | G199: =IFERROR(IF(LEN(C199)=9,VLOOKUP(C199,'MOS 5° - EDIÇÂO'!$D$15:$N$3486,7,FALSE),""),"ERRO") -> 158.88 | H199: 0
C200: 003004007 | E200: m² | F200: Destoca mecânica 0 < d ≤ 15 cm | G200: =IFERROR(IF(LEN(C200)=9,VLOOKUP(C200,'MOS 5° - EDIÇÂO'!$D$15:$N$3486,7,FALSE),""),"ERRO") -> 1.52 | H200: 0
C201: 003004008 | E201: ud | F201: Destoca mecânica 15 < d ≤ 30 cm | G201: =IFERROR(IF(LEN(C201)=9,VLOOKUP(C201,'MOS 5° - EDIÇÂO'!$D$15:$N$3486,7,FALSE),""),"ERRO") -> 21.77 | H201: 0
C202: 003004009 | E202: ud | F202: Destoca mecânica 30 < d ≤ 75 cm | G202: =IFERROR(IF(LEN(C202)=9,VLOOKUP(C202,'MOS 5° - EDIÇÂO'!$D$15:$N$3486,7,FALSE),""),"ERRO") -> 45.84 | H202: 0
C203: 003.005 | E203: UD | F203: SINALIZAÇÃO DE SEGURANÇA | H203: 0
C204: 003005001 | E204: m | F204: Fita plástica | G204: =IFERROR(IF(LEN(C204)=9,VLOOKUP(C204,'MOS 5° - EDIÇÂO'!$D$15:$N$3486,7,FALSE),""),"ERRO") -> 0.35 | H204: 0
C205: 003005002 | E205: m | F205: Tapume móvel contínuo | G205: =IFERROR(IF(LEN(C205)=9,VLOOKUP(C205,'MOS 5° - EDIÇÂO'!$D$15:$N$3486,7,FALSE),""),"ERRO") -> 7.57 | H205: 0
C206: 003005003 | E206: m | F206: Tapume móvel descontínuo | G206: =IFERROR(IF(LEN(C206)=9,VLOOKUP(C206,'MOS 5° - EDIÇÂO'!$D$15:$N$3486,7,FALSE),""),"ERRO") -> 3.78 | H206: 0
C207: 003005004 | E207: m | F207: Tapume em tela plástica | G207: =IFERROR(IF(LEN(C207)=9,VLOOKUP(C207,'MOS 5° - EDIÇÂO'!$D$15:$N$3486,7,FALSE),""),"ERRO") -> 1.62 | H207: 0
C208: 003.006 | E208: UD | F208: SINALIZAÇÃO DE TRÂNSITO | H208: 0
C209: 003006001 | E209: ud | F209: Placa de advertência 1,00 x 1,00 m | G209: =IFERROR(IF(LEN(C209)=9,VLOOKUP(C209,'MOS 5° - EDIÇÂO'!$D$15:$N$3486,7,FALSE),""),"ERRO") -> 142.61 | H209: 0
C210: 003006002 | E210: ud | F210: Placa de advertência 1,00 x 2,00 m | G210: =IFERROR(IF(LEN(C210)=9,VLOOKUP(C210,'MOS 5° - EDIÇÂO'!$D$15:$N$3486,7,FALSE),""),"ERRO") -> 234.95 | H210: =ROUND(D210*G210,2) -> 0
C211: 003006003 | E211: m | F211: Placa de Barragem | G211: =IFERROR(IF(LEN(C211)=9,VLOOKUP(C211,'MOS 5° - EDIÇÂO'!$D$15:$N$3486,7,FALSE),""),"ERRO") -> 12 | H211: 0
C212: 003006004 | E212: udxdia | F212: Sinalização com energia elétrica | G212: =IFERROR(IF(LEN(C212)=9,VLOOKUP(C212,'MOS 5° - EDIÇÂO'!$D$15:$N$3486,7,FALSE),""),"ERRO") -> 14.12 | H212: 0
... 2674 more rows

Sheet MOS 5° - EDIÇÂO (hidden)
B7: Simulação da Tabela de Preços - Sanepar
D10: MOS 5 - DEZEMBRO 23 | H10: Aprovação:
D14: Código | E14: Descrição | I14: UD | J14: Valor Unitário | K14: M.O | L14: Mat.
D15: 001 | E15: CANTEIRO DE OBRAS
D16: 001.001 | E16: CONSTRUÇÃO DO CANTEIRO | I16: UD | J16: Valor Unitário | K16: M. O. | L16: Mat.
D17: 001001001 | E17: Escritório | I17: m² | J17: 747.56 | K17: 526.64 | L17: 220.92
D18: 001001002 | E18: Alojamento / Vestiário | I18: m² | J18: 573.59 | K18: 409.87 | L18: 163.72
D19: 001001003 | E19: Local para refeições / Refeitório | I19: m² | J19: 683.26 | K19: 481.74 | L19: 201.51
D20: 001001004 | E20: Barracão fechado para materiais | I20: m² | J20: 458.47 | K20: 309.91 | L20: 148.55
D21: 001001005 | E21: Barracão aberto | I21: m² | J21: 210.99 | K21: 162.35 | L21: 48.64
D22: 001001006 | E22: Sanitário isolado | I22: m² | J22: 882.47 | K22: 541.39 | L22: 341.07
D23: 001001007 | E23: Chuveiro isolado | I23: m² | J23: 679.98 | K23: 439.22 | L23: 240.76
D24: 001001008 | E24: Sanitário químico | I24: udxmês | J24: 548.55 | K24: 247.8 | L24: 300.75
D25: 001.002 | E25: ABASTECIMENTO DE ENERGIA ELÉTRICA | I25: UD | J25: Valor Unitário | K25: M. O. | L25: Mat.
D26: 001002001 | E26: Entrada provisória de energia trifásica 70A | I26: ud | J26: 2896.46 | K26: 609.62 | L26: 2286.84
D27: 001.003 | E27: ABASTECIMENTO DE ÁGUA | I27: UD | J27: Valor Unitário | K27: M. O. | L27: Mat.
D28: 001003001 | E28: Entrada provisória de água | I28: ud | J28: 196.68 | K28: 196.68 | L28: 0
D29: 001003002 | E29: Poço freático sem revestimento | I29: m | J29: 443.54 | K29: 416.03 | L29: 27.5
D30: 001003003 | E30: Poço freático com revestimento com tijolos não rejuntados | I30: m | J30: 598.41 | K30: 476.58 | L30: 121.82
D31: 001003004 | E31: Poço freático com revestimento com tijolos rejuntados | I31: m | J31: 812.97 | K31: 681.85 | L31: 131.11
D32: 001.004 | E32: PROTEÇÃO DA ÁREA | I32: UD | J32: Valor Unitário | K32: M. O. | L32: Mat.
D33: 001004001 | E33: Cerca provisória de arame farpado | I33: m | J33: 53.26 | K33: 50.08 | L33: 3.17
D34: 001004002 | E34: Tapume de tábuas contínuas | I34: m | J34: 159.35 | K34: 132.34 | L34: 27
D35: 001004003 | E35: Tapume de chapa de madeira compensada | I35: m | J35: 121.99 | K35: 102.06 | L35: 19.92
D36: 001004004 | E36: Tapume de chapas metálicas | I36: m | J36: 184.64 | K36: 24.01 | L36: 160.63
D37: 001.005 | E37: PLACA DE OBRA | I37: UD | J37: Valor Unitário | K37: M. O. | L37: Mat.
D38: 001005001 | E38: Em chapa metálica | I38: m² | J38: 388.03 | K38: 90.48 | L38: 297.55
D39: 002 | E39: SERVIÇOS TÉCNICOS
D40: 002.001 | E40: TOPOGRAFIA E GEODÉSIA - SERVIÇOS | I40: UD | J40: Valor Unitário | K40: M. O. | L40: Mat.
D41: 002001001 | E41: Cadastro de unidade existente | I41: m² | J41: 2.7 | K41: 2.67 | L41: 0.03
D42: 002001002 | E42: Cadastro de poço de visita e tubulação existente - esparsas | I42: ud | J42: 172.67 | K42: 168.84 | L42: 3.83
D43: 002001003 | E43: Cadastro de poço de visita e tubulação existente - concentradas | I43: ud | J43: 103.69 | K43: 101.51 | L43: 2.17
D44: 002001004 | E44: Locação de furos de sondagem | I44: ud | J44: 44.21 | K44: 35.32 | L44: 8.89
D45: 002001005 | E45: Transporte de Altitude (Cota): extensão < 2 km | I45: km | J45: 568.75 | K45: 517.44 | L45: 51.31
D46: 002001006 | E46: Transporte de Altitude (Cota): 2 km < extensão < 10 km | I46: km | J46: 341.25 | K46: 310.46 | L46: 30.78
D47: 002001007 | E47: Transporte de Altitude (Cota): 10 km < extensão | I47: km | J47: 227.5 | K47: 206.97 | L47: 20.52
D48: 002001008 | E48: Levantamento planialtimétrico cadastral de área: 0,00 m² < área < 1.000 m² | I48: m² | J48: 1.11 | K48: 0.95 | L48: 0.15
D49: 002001009 | E49: Levantamento planialtimétrico cadastral de área: 1.000 m² < área < 20.000 m² | I49: m² | J49: 0.22 | K49: 0.19 | L49: 0.03
D50: 002001010 | E50: Levantamento planialtimétrico cadastral de área: 20.000 m² < área | I50: m² | J50: 0.11 | K50: 0.09 | L50: 0.01
D51: 002001011 | E51: Locação e nivelamento de linha (levantamento planialtimétrico de faixa) - para projeto de água | I51: km | J51: 1733.06 | K51: 1486.01 | L51: 247.05
D52: 002001012 | E52: Locação e nivelamento de linha (levantamento planialtimétrico de faixa) - para projeto de esgoto | I52: km | J52: 2976.24 | K52: 2460.23 | L52: 516
D53: 002001013 | E53: Levantamento planimétrico cadastral de faixa | I53: km | J53: 848.43 | K53: 695.03 | L53: 153.4
D54: 002001014 | E54: Levantamento planimétrico cadastral de área: 0,00 m² < área < 1.000 m² | I54: m² | J54: 0.44 | K54: 0.34 | L54: 0.09
D55: 002001015 | E55: Levantamento planimétrico cadastral de área: 1.000 m² < área < 20.000 m² | I55: m² | J55: 0.08 | K55: 0.06 | L55: 0.01
D56: 002001016 | E56: Levantamento planimétrico cadastral de área: 20.000 m² < área | I56: m² | J56: 0.04 | K56: 0.03 | L56: 0
D57: 002001017 | E57: Seção batimétrica - seca | I57: m | J57: 2.93 | K57: 2.82 | L57: 0.11
D58: 002001018 | E58: Seção batimétrica - molhada | I58: m | J58: 10 | K58: 9.93 | L58: 0.07
D59: 002001019 | E59: Seção batimétrica - molhada com auxílio de embarcação | I59: m | J59: 12.82 | K59: 12.74 | L59: 0.07
D60: 002001020 | E60: Locação e levantamento planialtimétrico de seções topográficas | I60: km | J60: 3912.74 | K60: 2960.8 | L60: 951.94
D61: 002001021 | E61: Locação, demarcação e levantamento de Curva de Nível | I61: km | J61: 1387.9 | K61: 633.78 | L61: 754.12
D62: 002001022 | E62: Locação de linha | I62: km | J62: 3149.31 | K62: 2318.65 | L62: 830.66
D63: 002001023 | E63: Mapa cadastral | I63: km² | J63: 487.85 | K63: 480.48 | L63: 7.37
D64: 002001024 | E64: Mapa altimétrico | I64: km² | J64: 2901.84 | K64: 2414.03 | L64: 487.8
D65: 002001025 | E65: Mapa altimétrico cadastral | I65: km² | J65: 3590.23 | K65: 3088.53 | L65: 501.69
D66: 002001026 | E66: Mapa planimétrico cadastral | I66: km² | J66: 4311.68 | K66: 3803.91 | L66: 507.77
D67: 002001027 | E67: Mapa planialtimétrico cadastral | I67: km² | J67: 8781.11 | K67: 8148.55 | L67: 632.56
D68: 002001028 | E68: Elementos para Legalização (busca documental e identificação do imóvel – Unidades Operacionais ou Lineares em área Rural) | I68: ud | J68: 952.58 | K68: 869.58 | L68: 82.99
D69: 002001029 | E69: Elementos para Legalização (busca documental e identificação do imóvel – Unidades Lineares em área Urbana) | I69: ud | J69: 158.79 | K69: 144.95 | L69: 13.83
D70: 002001030 | E70: Elementos para Legalização - Levantamento Topográfico de limites de imóvel urbano para legalização | I70: m² | J70: 0.45 | K70: 0.34 | L70: 0.11
D71: 002001031 | E71: Elementos para Legalização - Levantamento Topográfico de limites de imóvel Rural para legalização: Área: 0,00 m² < área < 10.000 m² | I71: m² | J71: 0.14 | K71: 0.11 | L71: 0.03
D72: 002001032 | E72: Elementos para Legalização - Levantamento Topográfico de limites de imóvel Rural para legalização: 10.000 m² < área < 100.000 m² | I72: m² | J72: 1.33 | K72: 1.05 | L72: 0.28
D73: 002001033 | E73: Elementos para Legalização - Levantamento Topográfico de limites de imóvel Rural para legalização: 100.000 m² < área | I73: m² | J73: 1.48 | K73: 1.17 | L73: 0.31
D74: 002001034 | E74: Elementos para Legalização - Confecção de Planta de Imóvel Urbano ou Rural | I74: ud | J74: 334.02 | K74: 334.02 | L74: 0
D75: 002001035 | E75: Elementos para Legalização - Confecção de Planta Geral de Elementos de Legalização | I75: ud | J75: 334.02 | K75: 334.02 | L75: 0
D76: 002001036 | E76: Elementos para Legalização - Confecção de Material e procedimentos para inclusão de imóvel no Cadastro Ambiental Rural (CAR) | I76: m² | J76: 0.83 | K76: 0.82 | L76: 0
D77: 002001037 | E77: Elementos para Legalização - (memorial descritivo) | I77: ud | J77: 200.41 | K77: 200.41 | L77: 0
D78: 002001038 | E78: Atualização de bases cartográficas | I78: km | J78: 1186.22 | K78: 1012.13 | L78: 174.09
D79: 002001039 | E79: Locação e nivelamento para assentamento de tubulação de esgoto (Ordem de Serviço para Execução – OSE) | I79: m | J79: 2.78 | K79: 2.26 | L79: 0.52
D80: 002001040 | E80: Planta Geral com representação de OSE’s | I80: ud | J80: 200.95 | K80: 200.41 | L80: 0.54
D81: 002001041 | E81: Acompanhamento de assentamento de tubulação de esgoto - DN < 400 mm | I81: m | J81: 10.03 | K81: 10.03 | L81: 0
D82: 002001042 | E82: Acompanhamento de assentamento de tubulação de esgoto - DN = 400 mm | I82: m | J82: 16.8 | K82: 16.8 | L82: 0
D83: 002001043 | E83: Locação da obra com auxílio de equipamento topográfico | I83: m² | J83: 3.25 | K83: 2.41 | L83: 0.84
D84: 002001044 | E84: Locação da obra sem auxílio de equipamento topográfico | I84: m² | J84: 2.91 | K84: 2.06 | L84: 0.84
D85: 002001045 | E85: Reconstituição topográfica de OSE (materialização de piquetes) | I85: m | J85: 1.29 | K85: 1.14 | L85: 0.15
D86: 002001046 | E86: Monumentação de vértices de controle imediato | I86: ud | J86: 199.94 | K86: 172.45 | L86: 27.48
D87: 002001047 | E87: Monumentação de vértices de controle básico | I87: ud | J87: 538.49 | K87: 508.41 | L87: 30.08
D88: 002001048 | E88: Abertura de Picada - vegetação de pequeno porte | I88: m | J88: 0.44 | K88: 0.44 | L88: 0
D89: 002001049 | E89: Abertura de Picada - vegetação de grande porte | I89: m | J89: 0.89 | K89: 0.89 | L89: 0
D90: 002.002 | E90: TOPOGRAFIA E GEODÉSIA - ESTADIA DA EQUIPE | I90: UD | J90: Valor Unitário | K90: M. O. | L90: Mat.
D91: 002002001 | E91: Cadastro de unidade existente | I91: m² | J91: 0.54 | K91: 0.54 | L91: 0
D92: 002002002 | E92: Cadastro de poço de visita e tubulação existente – esparsas | I92: ud | J92: 32.16 | K92: 32.16 | L92: 0
D93: 002002003 | E93: Cadastro de poço de visita e tubulação existente - concentradas | I93: ud | J93: 19.49 | K93: 19.49 | L93: 0
D94: 002002004 | E94: Locação de furos de sondagem | I94: ud | J94: 7.79 | K94: 7.79 | L94: 0
D95: 002002005 | E95: Transporte de Altitude (cota): extensão < 2 km | I95: km | J95: 102.91 | K95: 102.91 | L95: 0
D96: 002002006 | E96: Transporte de Altitude (cota): 2 km < extensão < 10 km | I96: km | J96: 341.25 | K96: 310.46 | L96: 30.78
D97: 002002007 | E97: Transporte de Altitude (cota): 10 km < extensão | I97: km | J97: 41.16 | K97: 41.16 | L97: 0
D98: 002002008 | E98: Lev. Planialtimétrico Cadastral de área: 0,00 m² < área < 1.000 m² | I98: m² | J98: 0.13 | K98: 0.13 | L98: 0
D99: 002002009 | E99: Lev. Planialtimétrico Cadastral de área: 1.000 m² < área < 20.000 m² | I99: m² | J99: 0.02 | K99: 0.02 | L99: 0
D100: 002002010 | E100: Lev. Planialtimétrico Cadastral de área: 20.000 m² < área | I100: m² | J100: 0.01 | K100: 0.01 | L100: 0
D101: 002002011 | E101: Loc. e nivelamento de linha (levantamento planialtimétrico de faixa) - para projeto de água | I101: km | J101: 302.68 | K101: 302.68 | L101: 0
D102: 002002012 | E102: Loc. e nivelamento de linha (levantamento planialtimétrico de faixa) - para projeto de esgoto | I102: km | J102: 514.56 | K102: 514.56 | L102: 0
D103: 002002013 | E103: Levantamento planimétrico cadastral de faixa | I103: km | J103: 102.91 | K103: 102.91 | L103: 0
D104: 002002014 | E104: Levantamento Planimétrico Cadastral de Área: 0,00 m² < área < 1.000 m² | I104: m² | J104: 0.06 | K104: 0.06 | L104: 0
D105: 002002015 | E105: Levantamento Planimétrico Cadastral de Área: 1.000 m² < área < 20.000 m² | I105: m² | J105: 0.08 | K105: 0.06 | L105: 0.01
D106: 002002016 | E106: Levantamento Planimétrico Cadastral de Área: 20.000 m² < área | I106: m² | J106: 0.01 | K106: 0.01 | L106: 0
D107: 002002017 | E107: Seção Batimétrica - seca | I107: m | J107: 0.5 | K107: 0.5 | L107: 0
D108: 002002018 | E108: Seção Batimétrica - molhada | I108: m | J108: 2.09 | K108: 2.09 | L108: 0
D109: 002002019 | E109: Seções Batimétricas – molhada com embarcação | I109: m | J109: 2.09 | K109: 2.09 | L109: 0
D110: 002002020 | E110: Locação e levantamento planialtimétrico de seções topográficas | I110: km | J110: 329.85 | K110: 329.85 | L110: 0
D111: 002002021 | E111: Locação, demarcação e levantamento de Curva de Nível | I111: km | J111: 64.32 | K111: 64.32 | L111: 0
D112: 002002022 | E112: Locação de linha | I112: km | J112: 334.12 | K112: 334.12 | L112: 0
D113: 002002023 | E113: Mapa cadastral | I113: km² | J113: 98.94 | K113: 98.94 | L113: 0
D114: 002002024 | E114: Mapa altimétrico | I114: km² | J114: 428.8 | K114: 428.8 | L114: 0
D115: 002002025 | E115: Mapa altimétrico cadastral | I115: km² | J115: 559.3 | K115: 559.3 | L115: 0
D116: 002002026 | E116: Mapa planimétrico cadastral | I116: km² | J116: 714.66 | K116: 714.66 | L116: 0
D117: 002002027 | E117: Mapa planialtimétrico cadastral | I117: km² | J117: 1608 | K117: 1608 | L117: 0
D118: 002002028 | E118: Elementos para legalização (busca documental e identificação do imóvel – Unidades Operacionais ou Lineares em área Rural) | I118: ud | J118: 85.76 | K118: 85.76 | L118: 0
D119: 002002029 | E119: Elementos para legalização (busca documental e identificação do imóvel – Unidades Lineares em área Urbana) | I119: ud | J119: 14.29 | K119: 14.29 | L119: 0
D120: 002002030 | E120: Elementos para legalização Levantamento Topográfico de limites de imóvel urbano para legalização | I120: m² | J120: 0.05 | K120: 0.05 | L120: 0
D121: 002002031 | E121: Elementos para legalização Levantamento Topográfico de limites de imóvel Rural para legalização: Área: 0,00 m² < área < 10.000 m² | I121: m² | J121: 0.05 | K121: 0.05 | L121: 0
D122: 002002032 | E122: Elementos para legalização Levantamento Topográfico de limites de imóvel Rural para legalização: 10.000 m² < área < 100.000 m² | I122: m² | J122: 0.02 | K122: 0.02 | L122: 0
D123: 002002033 | E123: Elementos para legalização Levantamento Topográfico de limites de imóvel Rural para legalização: 100.000 m² < área | I123: m² | J123: 0.06 | K123: 0.06 | L123: 0
D124: 002002036 | E124: Elementos para legalização Confecção de Material e procedimentos para inclusão de imóvel no Cadastro Ambiental Rural (CAR) | I124: m² | J124: 0.12 | K124: 0.12 | L124: 0
D125: 002002038 | E125: Atualização de bases cartográficas | I125: km | J125: 114.34 | K125: 114.34 | L125: 0
D126: 002002039 | E126: Locação e nivelamento para assentamento de tubulação de esgoto (Ordem de serviço para execução – OSE) | I126: m | J126: 0.47 | K126: 0.47 | L126: 0
D127: 002002041 | E127: Acompanhamento de assentamento de tubulação de esgoto - DN < 400 mm | I127: m | J127: 2.77 | K127: 2.77 | L127: 0
D128: 002002042 | E128: Acompanhamento de assentamento de tubulação de esgoto - DN = 400 mm | I128: m | J128: 4.63 | K128: 4.63 | L128: 0
D129: 002002043 | E129: Locação da obra com auxilio de equipamento topográfico | I129: m² | J129: 0.55 | K129: 0.55 | L129: 0
D130: 002002044 | E130: Locação da obra sem auxilio de equipamento topográfico | I130: m² | J130: 0.48 | K130: 0.48 | L130: 0
D131: 002002045 | E131: Reconstituição Topográfica de OSE (Materialização de piquetes) | I131: m | J131: 0.24 | K131: 0.24 | L131: 0
D132: 002002046 | E132: Monumentação de Vértices de Controle Imediato | I132: ud | J132: 35.24 | K132: 35.24 | L132: 0
D133: 002002047 | E133: Monumentação de Vértices de Controle Básico | I133: ud | J133: 105.01 | K133: 105.01 | L133: 0
D134: 002002048 | E134: Abertura de picada - vegetação de pequeno porte | I134: m | J134: 0.08 | K134: 0.08 | L134: 0
D135: 002002049 | E135: Abertura de picada - vegetação de grande porte | I135: m | J135: 0.16 | K135: 0.16 | L135: 0
D136: 002.003 | E136: TOPOGRAFIA E GEODÉSIA - TRANSPORTE DA EQUIPE | I136: UD | J136: Valor Unitário | K136: M. O. | L136: Mat.
D137: 002003001 | E137: Deslocamento da equipe topográfica / equipe de serviços técnicos especializados | I137: km | J137: 5.11 | K137: 5.11 | L137: 0
D138: 002.004 | E138: SONDAGEM A PERCUSSÃO | I138: UD | J138: Valor Unitário | K138: M. O. | L138: Mat.
D139: 002004001 | E139: Perfuração em solo (SPT) sem estadia da equipe - Cidade Pólo | I139: m | J139: 189.51 | K139: 189.51 | L139: 0
D140: 002004002 | E140: Perfuração em solo (SPT) com estadia da equipe | I140: m | J140: 258.41 | K140: 258.41 | L140: 0
D141: 002004003 | E141: Transporte de equipe de sondagem a percussão e de topografia – distância até 20km – Cidade Pólo | I141: ud | J141: 438.61 | K141: 438.61 | L141: 0
D142: 002004004 | E142: Transporte de equipe de sondagem a percussão e de topografia – distância acima de 20km até 100km | I142: ud | J142: 2193.05 | K142: 2193.05 | L142: 0
D143: 002004005 | E143: Transporte de equipe de sondagem a percussão e de topografia – distância acima de 100km até 200km | I143: ud | J143: 4386.1 | K143: 4386.1 | L143: 0
D144: 002004006 | E144: Transporte de equipe de sondagem a percussão e de topografia – distância acima de 200km até 300km | I144: ud | J144: 6579.16 | K144: 6579.16 | L144: 0
D145: 002.005 | E145: SONDAGEM ROTATIVA | I145: UD | J145: Valor Unitário | K145: M. O. | L145: Mat.
D146: 002005001 | E146: Perfuração em solo – SPT (sem estadia da equipe - Cidade Pólo) | I146: m | J146: 197.17 | K146: 193.86 | L146: 3.31
D147: 002005002 | E147: Em rocha alterada - BX (sem estadia da equipe - Cidade Pólo) | I147: m | J147: 350.39 | K147: 347.85 | L147: 2.54
D148: 002005003 | E148: Em rocha (arenito, siltito, folhelho e calcário) - BX (sem estadia da equipe - Cidade Pólo) | I148: m | J148: 371.29 | K148: 368.59 | L148: 2.7
D149: 002005004 | E149: Em rocha (basalto, diabásio e granito) - BX (sem estadia da equipe - Cidade Pólo) | I149: m | J149: 519.81 | K149: 516.03 | L149: 3.78
D150: 002005005 | E150: Em rocha (gnaisse, migmatito) - BX (sem estadia da equipe - Cidade Pólo) | I150: m | J150: 727.74 | K150: 722.45 | L150: 5.29
D151: 002005006 | E151: Perfuração em solo – SPT (com estadia da equipe) | I151: m | J151: 266.08 | K151: 262.76 | L151: 3.31
D152: 002005007 | E152: Em rocha alterada - BX (com estadia da equipe) | I152: m | J152: 352.23 | K152: 349.68 | L152: 2.54
D153: 002005008 | E153: Em rocha (arenito, siltito, folhelho e calcário) - BX (com estadia da equipe) | I153: m | J153: 373.23 | K153: 370.53 | L153: 2.7
D154: 002005009 | E154: Em rocha (basalto, diabásio e granito) - BX (com estadia da equipe) | I154: m | J154: 522.52 | K154: 518.73 | L154: 3.78
D155: 002005010 | E155: Em rocha (gnaisse, migmatito) - BX (com estadia da equipe) | I155: m | J155: 731.52 | K155: 726.23 | L155: 5.29
D156: 002005011 | E156: Transporte de equipe de sondagem mista e de topografia – distância até 20km – Cidade Pólo | I156: ud | J156: 438.61 | K156: 438.61 | L156: 0
D157: 002005012 | E157: Transporte de equipe de sondagem mista e de topografia – distância acima de 20km até 100km | I157: ud | J157: 2193.05 | K157: 2193.05 | L157: 0
D158: 002005013 | E158: Transporte de equipe de sondagem mista e de topografia – distância acima de 100km até 200km | I158: ud | J158: 4386.1 | K158: 4386.1 | L158: 0
D159: 002005014 | E159: Transporte de equipe de sondagem mista e de topografia – distância acima de 200km até 300km | I159: ud | J159: 6579.16 | K159: 6579.16 | L159: 0
D160: 002.006 | E160: SONDAGEM A TRADO | I160: UD | J160: Valor Unitário | K160: M. O. | L160: Mat.
D161: 002006001 | E161: Perfuração em solo (trado) sem estadia da equipe - Cidade Pólo | I161: m | J161: 54.33 | K161: 54.33 | L161: 0
D162: 002006002 | E162: Perfuração em solo (trado) com estadia da equipe | I162: m | J162: 85.78 | K162: 85.78 | L162: 0
D163: 002006003 | E163: Transporte de equipe de sondagem a trado e de topografia – distância até 20km – Cidade Pólo | I163: ud | J163: 246 | K163: 246 | L163: 0
D164: 002006004 | E164: Transporte de equipe de sondagem a trado e de topografia – distância acima de 20km até 100km | I164: ud | J164: 1230 | K164: 1230 | L164: 0
D165: 002006005 | E165: Transporte de equipe de sondagem a trado e de topografia – distância acima de 100km até 200km | I165: ud | J165: 2460 | K165: 2460 | L165: 0
D166: 002006006 | E166: Transporte de equipe de sondagem a trado e de topografia – distância acima de 200km até 300km | I166: ud | J166: 3690.01 | K166: 3690.01 | L166: 0
D167: 002.007 | E167: CADASTRO DE OBRAS | I167: UD | J167: Valor Unitário | K167: M. O. | L167: Mat.
D168: 002007001 | E168: Cadastro linear de água - CAD | I168: m | J168: 0.54 | K168: 0.54 | L168: 0
D169: 002007002 | E169: Cadastro linear de esgoto - CAD | I169: m | J169: 0.54 | K169: 0.54 | L169: 0
D170: 002007003 | E170: Cadastro linear de água - CADAGUA | I170: m | J170: 0.54 | K170: 0.54 | L170: 0
D171: 002007004 | E171: Cadastro linear de esgoto - CADESG | I171: m | J171: 0.54 | K171: 0.54 | L171: 0
D172: 002007005 | E172: Cadastro de obra localizada "as built" | I172: ud | J172: 160.37 | K172: 160.37 | L172: 0
D173: 003 | E173: SERVIÇOS PRELIMINARES
D174: 003.001 | E174: PESQUISA E REMANEJAMENTO DE INTERFERÊNCIAS | I174: UD | J174: Valor Unitário | K174: M. O. | L174: Mat.
D175: 003001001 | E175: Pesquisa | I175: m³ | J175: 140.91 | K175: 140.91 | L175: 0
D176: 003001002 | E176: Remanejamento de galerias DN 200 | I176: m | J176: 52.21 | K176: 52.21 | L176: 0
D177: 003001003 | E177: Remanejamento de galerias DN 300 | I177: m | J177: 56.75 | K177: 56.75 | L177: 0
D178: 003001004 | E178: Remanejamento de galerias DN 400 | I178: m | J178: 63.56 | K178: 63.56 | L178: 0
D179: 003001005 | E179: Remanejamento de galerias DN 500 | I179: m | J179: 66.59 | K179: 66.59 | L179: 0
D180: 003001006 | E180: Remanejamento de galerias DN 600 | I180: m | J180: 77.09 | K180: 77.09 | L180: 0
D181: 003001007 | E181: Remanejamento de galerias DN 800 | I181: m | J181: 103.37 | K181: 103.37 | L181: 0
D182: 003001008 | E182: Remanejamento de galerias DN 1000 | I182: m | J182: 141.88 | K182: 141.88 | L182: 0
D183: 003001009 | E183: Remanejamento de galerias DN 1200 | I183: m | J183: 208.48 | K183: 208.48 | L183: 0
D184: 003.002 | E184: ACESSO PROVISÓRIO | I184: UD | J184: Valor Unitário | K184: M. O. | L184: Mat.
D185: 003002001 | E185: Acesso provisório | I185: m² | J185: 6.02 | K185: 6.02 | L185: 0
D186: 003.003 | E186: ESTIVA | I186: UD | J186: Valor Unitário | K186: M. O. | L186: Mat.
D187: 003003001 | E187: Estiva de madeira para acesso | I187: m³ | J187: 657.22 | K187: 79.44 | L187: 577.78
D188: 003003002 | E188: Estiva de madeira para acesso - com material local | I188: m³ | J188: 199.71 | K188: 199.71 | L188: 0
D189: 003003003 | E189: Estiva de madeira para suporte de retroescavadeira | I189: m | J189: 19.02 | K189: 13.71 | L189: 5.31
D190: 003003004 | E190: Estiva de madeira para suporte de escavadeira hidráulica | I190: m | J190: 25.79 | K190: 18.19 | L190: 7.6
D191: 003.004 | E191: PREPARO DO TERRENO | I191: UD | J191: Valor Unitário | K191: M. O. | L191: Mat.
D192: 003004001 | E192: Roçada fina | I192: m² | J192: 2.11 | K192: 2.11 | L192: 0
D193: 003004002 | E193: Roçada densa | I193: m² | J193: 3.17 | K193: 3.17 | L193: 0
D194: 003004003 | E194: Raspagem de camada vegetal | I194: m² | J194: 1.27 | K194: 1.27 | L194: 0
D195: 003004004 | E195: Destoca manual 0 < d =15 cm | I195: m² | J195: 8.73 | K195: 8.73 | L195: 0
D196: 003004005 | E196: Destoca manual 15 < d = 30 cm | I196: ud | J196: 79.44 | K196: 79.44 | L196: 0
D197: 003004006 | E197: Destoca manual 30 < d = 75 cm | I197: ud | J197: 158.88 | K197: 158.88 | L197: 0
D198: 003004007 | E198: Destoca mecânica 0 < d = 15 cm | I198: m² | J198: 1.52 | K198: 1.52 | L198: 0
D199: 003004008 | E199: Destoca mecânica 15 < d = 30 cm | I199: ud | J199: 21.77 | K199: 21.77 | L199: 0
D200: 003004009 | E200: Destoca mecânica 30 < d = 75 cm | I200: ud | J200: 45.84 | K200: 45.84 | L200: 0
D201: 003.005 | E201: SINALIZAÇÃO DE SEGURANÇA | I201: UD | J201: Valor Unitário | K201: M. O. | L201: Mat.
D202: 003005001 | E202: Fita plástica | I202: m | J202: 0.35 | K202: 0.21 | L202: 0.14
D203: 003005002 | E203: Tapume móvel contínuo | I203: m | J203: 7.57 | K203: 3.02 | L203: 4.55
D204: 003005003 | E204: Tapume móvel descontínuo | I204: m | J204: 3.78 | K204: 1.51 | L204: 2.27
D205: 003005004 | E205: Tapume em tela plástica | I205: m | J205: 1.62 | K205: 1.47 | L205: 0.15
D206: 003.006 | E206: SINALIZAÇÃO DE TRÂNSITO | I206: UD | J206: Valor Unitário | K206: M. O. | L206: Mat.
D207: 003006001 | E207: Placa de advertência 1,00 x 1,00 m | I207: ud | J207: 142.61 | K207: 62.82 | L207: 79.79
D208: 003006002 | E208: Placa de advertência 1,00 x 2,00 m | I208: ud | J208: 234.95 | K208: 95.37 | L208: 139.57
D209: 003006003 | E209: Placa de Barragem | I209: m | J209: 12 | K209: 8.47 | L209: 3.52
D210: 003006004 | E210: Sinalização com energia elétrica | I210: udxdia | J210: 14.12 | K210: 7.41 | L210: 6.71
D211: 003006005 | E211: Sinalização com lamparinas a óleo | I211: udxdia | J211: 3.97 | K211: 3.97 | L211: 0
... 2437 more rows

Sheet MC obra linear
C1: erviços
C3: NÚMERO OSE | D3: N.º PV | E3: DISTÂNCIA ENTRE PIQUETES (m) | F3: DISTÂNCIA ACUMULADA (m) | G3: COTA DO TERRENO (m) | H3: DECLIVIDADE ENTRE PIQUETES(m) | I3: COTA DA GERATRIZ INTERNA INFERIOR DO TUBO (m) | J3: Embasamento | K3: PV | M3: TL / DTI | O3: TQ / DG | Q3: DIÂMETRO (m) | R3: MATERIAL | S3: MÉDIA DAS PROFUNIDADES | V3: CRAVAÇÃO | X3: ASSENTAMENTO | Y3: VOLUME ESCAVAÇÃO MANUAL | AA3: VOLUME ESC. MECÂNICA | AE3: TOTAL ESCAVAÇÃO | AG3: EMBASAMENTO AREIA (m³) | AI3: EMBASAMENTO BRITA (m³) | AK3: EMBASAMENTO RACHÃO (m³) | AM3: EMBASAMENTO PÓ DE PEDRA (m³) | AO3: JAZIDA | AP3: VOLUME DO TUBO (m³) | AQ3: TUBO DE PVC DN150 (m) | AR3: CAIXA METÁLICA | AS3: ESCORAMENTO MADEIRA (m²-pontaletes, 0,3m de larg.) | AT3: ESCORAMENTO METÁLICO (m²) | AU3: REATERRO (m³) | AW3: COMPACTAÇÃO (m³) | AY3: REATERRO (m³) | AZ3: CARGA E DESCARGA DE SOLO (m³) | BA3: TRANSPORTE DE SOLO (m³xKm) | BB3: Pavimentação Saibro (m²) | BC3: PAVIMENTAÇÃO | CC3: AÉRIO | CD3: RECOBRIMENTO MINIMO | CE3: LIGAÇÕES (ud)
J4: 0.1 | K4: QTDE UNID. de PV (Ø=0,8m;h=1,0m) | L4: EXCEDENTE da UNID. de PV (m) | M4: QTDE UNID. de TL | N4: PROF. (m) | O4: QTD | P4: ALTURA | T4: LARGURA | U4: LARGURA MÉDIA | V4: A TRADO | W4: MECÂNICO | Y4: prof. 0 a 1 m | Z4: prof. 1 a 1,6 m | AA4: prof. 0 a 2 m | AB4: prof. 0 a 4 m | AC4: prof. 0 a 6 m | AD4: prof. 0 a 8 m | AE4: ESC. | AF4: ESC. | AG4: Vala prof. Até | AH4: Vala prof. > | AI4: Vala prof. Até | AJ4: Vala prof. > | AK4: Vala prof. Até | AL4: Vala prof. > | AM4: Vala prof. Até | AN4: Vala prof. > | AU4: MANUAL | AV4: MECÂNICO | AW4: MANUAL | AX4: MECÂNICA | AY4: TOTAL | CD4: 0.65
J5: PROFUNDIDADE (m) | AE5: MANUAL | AF5: MECÂNICA | AG5: 2,50m | AH5: 2,50m | AI5: 2,50m | AJ5: 2,50m | AK5: 2,50m | AL5: 2,50m | AM5: 2,50m | AN5: 2,50m | BC5: CONCRETO (m²) | BE5: GRAMA (m²) | BG5: LAJOTA SEXTAVADA (m²) | BI5: LADRILHO CERÂMICO (m²) | BK5: ASFALTO (m²) | BM5: PEDRISCO (m²) | BO5: LAJOTA PRÉ MOLDADA (m²) | BQ5: PISO DE CONCRETO DESEMPENADO (m²) | BS5: PAVER (m²) | BU5: LOUSA DE PEDRA (m²) | BW5: PARALELEPÍPEDO (m²) | BY5: ANTIPÓ (m²) | CA5: BRITA (m²)
T6: LARGURA | U6: LARGURA MÉDIA | AE6: 10 | AF6: 90 | AG6: 0.1 | AO6: 5 | AS6: 1.35 | AU6: 0.3 | AW6: 0.3 | BA6: 10 | BC6: EXT. | BD6: ÁREA | BE6: EXT. | BF6: ÁREA | BG6: EXT. | BH6: ÁREA | BI6: EXT. | BJ6: ÁREA | BK6: EXT. | BL6: ÁREA | BM6: EXT. | BN6: ÁREA | BO6: EXT. | BP6: ÁREA | BQ6: EXT. | BR6: ÁREA | BS6: EXT. | BT6: ÁREA | BU6: EXT. | BV6: ÁREA | BW6: EXT. | BX6: ÁREA | BY6: EXT. | BZ6: ÁREA | CA6: EXT. | CB6: ÁREA
C7: 115 | E7: =IF(F7-F6>0,F7-F6,0) -> 0 | H7: =IFERROR((I12-G12)/D12,"") -> 0.05525 | CD7: =IFERROR( IF(J7-Q7<=0.65,"SEM RECOBRIMENTO",""),"") -> SEM RECOBRIMENTO | CE7: 0
C8: 22-1 | D8: 0 | E8: 0 | F8: 0 | G8: 899.676 | I8: 897.965 | J8: =IF(I8<>0,G8-I8,"") -> 1.711 | Q8: 0.7 | R8: Aço | S8: =IF(I8>0,AVERAGE(J7:J8)+$J$4,"") -> 1.811 | T8: =IF(AND(S8<=2,S8>0),Q8+matSL(R8,Q8)+0.1,IF(AND(S8>2,S8<=3),Q8+0.1+0.1+matSL(R8,Q8),IF(AND(S8>3,S8<=4),Q8+0.1+0.1+0.1+matSL(R8,Q8),IF(AND(S8>4,S8<=5),Q8+matSL(R8,Q8)+0.1+0.1+0.1+0.1,IF(AND(S8>5,S8<=6),Q8+matSL(R8,Q8)+0.1+0.1+0.1+0.1+0.1,IF(AND(S8>6,S8<=7),Q8+matSL(R8,Q8)+0.1+0.1+0.1+0.1+0.1+0.1,"")))))) -> 1.2 | U8: =IFERROR(AVERAGE(T8:T9),"") -> 1.175 | Y8: =IFERROR(IF(S8<1,S8*X8*U8*$AE$6/100,X8*U8*$AE$6/100),"") -> 0 | Z8: =IFERROR(IF(S8<=1,0,IF(AND(S8>1,S8<=1.6),(S8-1)*X8*U8*$AE$6/100,IF(S8>1.6,X8*U8*0.6*$AE$6/100))),"") -> 0 | AA8: =IF(I8>0,IF(AND(S8>1.6,S8<=2),(X8*U8*1.6)*$AF$6/100+(S8-1.6)*X8*U8,IF(S8<=1.6,X8*S8*U8*$AF$6/100,0)),"") -> 0 | AB8: =IF(I8>0,IF(AND(S8>2,S8<=4),(X8*U8*1.6)*$AF$6/100+(S8-1.6)*X8*U8,0),"") -> 0 | AC8: =IF(I8>0,IF(AND(S8>4,S8<=6),(X8*U8*1.6)*$AF$6/100+(S8-1.6)*X8*U8,0),"") -> 0 | AD8: =IF(I8>0,IF(AND(S8>6,S8<=8),(X8*U8*1.6)*$AF$6/100+(S8-1.6)*X8*U8,0),"") -> 0 | AE8: =IF(I8>0,SUM(Y8:Z8),"") -> 0 | AF8: =IF(I8>0,SUM(AA8:AD8),"") -> 0 | AG8: =IFERROR(IF(X8>0,IF((S8-Q8)<2,X8*U8*($AG$6+Q8/2)-AP8/2,0),0),"") -> 0 | AH8: =IFERROR(IF(X8>0,IF((S8-Q8)>2,X8*U8*($AG$6+Q8+0.05)-AP9,0),0),"") -> 0 | AI8: =IF(I8>0,IF(S8<2.5,X8*U8*$AI$6,0),"") -> 0 | AJ8: =IFERROR(IF(S8>2.5,X8*U8*$AI$6,0),"") -> 0 | AK8: =IF(I8>0,IF(S8<2.5,X8*U8*$AK$6,0),"") -> 0 | AL8: =IFERROR(IF(S8>2.5,X8*U8*$AK$6,0),"") -> 0 | AM8: =IF(I8>0,IF(S8<2.5,X8*U8*$AM$6,0),"") -> 0 | AN8: =IFERROR(IF(S8>2.5,X8*U8*$AM$6,0),"") -> 0 | AO8: =IFERROR((AE8+AF8)*$AO$6/100,"") -> 0 | AP8: =IFERROR((3.1415*Q8*Q8*X8)/4,"") -> 0 | AQ8: =X8 -> 0 | AR8: =IF(I8>0,IF(AND(S8>2.5,S8<4.5),S8*2*X8,0),"") -> 0 | AS8: =IF(I8>0,IF(S8<2.5,IF(S8>1.25,((X8/$AS$6)*2)*0.3*S8,0),0),"") -> 0 | AU8: =IFERROR((X8*U8*$AU$6)*0.8+(AE8-((AG8+AH8+AI8+AJ8+AK8+AL8+AM8+AN8+AP8)*0.2)),"") -> 0 | AV8: =IFERROR(AY8-AU8,"") -> 0 | AW8: =IFERROR(X8*U8*$AW$6,"") -> 0 | AX8: =IFERROR(AY8-AW8,"") -> 0 | AY8: =IFERROR((X8*S8*U8)-AP8-(AG8+AH8+AI8+AJ8+AK8+AL8+AM8+AN8),"") -> 0 | AZ8: =IF(I8>0,SUM(AG8:AP8)*1.25,"") -> 0 | BA8: =IFERROR(AZ8*$BA$6,"") -> 0 | CC8: =IF(J8<0,"TRECHO AÉRIO","") ->  | CR8: PVC | CS8: 100
D9: 1 | E9: 20 | F9: 20 | G9: 900.12 | I9: 899.07 | J9: 1.05 | Q9: 0.7 | R9: PEAD | S9: 1.4805 | T9: =IF(AND(S9<=2,S9>0),Q9+matSL(R9,Q9)+0.1,IF(AND(S9>2,S9<=3),Q9+0.1+0.1+matSL(R9,Q9),IF(AND(S9>3,S9<=4),Q9+0.1+0.1+0.1+matSL(R9,Q9),IF(AND(S9>4,S9<=5),Q9+matSL(R9,Q9)+0.1+0.1+0.1+0.1,IF(AND(S9>5,S9<=6),Q9+matSL(R9,Q9)+0.1+0.1+0.1+0.1+0.1,IF(AND(S9>6,S9<=7),Q9+matSL(R9,Q9)+0.1+0.1+0.1+0.1+0.1+0.1,"")))))) -> 1.15 | U9: =IFERROR(AVERAGE(T9:T10),"") -> 1.15 | X9: =IF(I9>0,E9-V9-W9,"") -> 20 | Y9: 2.3 | Z9: 1.10515 | AA9: 30.64635 | AB9: 0 | AC9: 0 | AD9: 0 | AE9: 3.40515 | AF9: 30.64635 | AG9: 6.5016625 | AH9: 0 | AI9: 0 | AJ9: 0 | AK9: 0 | AL9: 0 | AM9: 0 | AN9: 0 | AO9: =IFERROR((AE9+AF9)*$AO$6/100,"") -> 1.702575 | AP9: 7.696675 | AQ9: =X9 -> 20 | AR9: 0 | AS9: 13.16 | AU9: =IFERROR((X9*U9*$AU$6)*0.8+(AE9-((AG9+AH9+AI9+AJ9+AK9+AL9+AM9+AN9+AP9)*0.2)),"") -> 6.0854825 | AV9: =IFERROR(AY9-AU9,"") -> 13.76768 | AW9: =IFERROR(X9*U9*$AW$6,"") -> 6.9 | AX9: =IFERROR(AY9-AW9,"") -> 12.9531625 | AY9: 19.8531625 | AZ9: 19.87614062 | BA9: =IFERROR(AZ9*$BA$6,"") -> 198.7614062 | CD9: SEM RECOBRIMENTO | CR9: PVC | CS9: 150
D10: 2 | E10: 20 | F10: 40 | G10: 901.632 | I10: 900.175 | J10: 1.457 | Q10: 0.7 | R10: PEAD | S10: 1.3535 | T10: =IF(AND(S10<=2,S10>0),Q10+matSL(R10,Q10)+0.1,IF(AND(S10>2,S10<=3),Q10+0.1+0.1+matSL(R10,Q10),IF(AND(S10>3,S10<=4),Q10+0.1+0.1+0.1+matSL(R10,Q10),IF(AND(S10>4,S10<=5),Q10+matSL(R10,Q10)+0.1+0.1+0.1+0.1,IF(AND(S10>5,S10<=6),Q10+matSL(R10,Q10)+0.1+0.1+0.1+0.1+0.1,IF(AND(S10>6,S10<=7),Q10+matSL(R10,Q10)+0.1+0.1+0.1+0.1+0.1+0.1,"")))))) -> 1.15 | U10: 1.15 | X10: 20 | Y10: 2.3 | Z10: 0.81305 | AA10: 28.01745 | AB10: 0 | AC10: 0 | AD10: 0 | AE10: 3.11305 | AF10: 28.01745 | AG10: 6.5016625 | AH10: 0 | AI10: 0 | AJ10: 0 | AK10: 0 | AL10: 0 | AM10: 0 | AN10: 0 | AO10: 1.556525 | AP10: 7.696675 | AQ10: 20 | AR10: 0 | AS10: 12.03111111 | AU10: 5.7933825 | AV10: 11.13878 | AW10: 6.9 | AX10: 10.0321625 | AY10: 16.9321625 | AZ10: 19.69357812 | BA10: 196.9357812 | CR10: PVC | CS10: 200
D11: 2+4,00 | E11: 4 | F11: 44 | G11: 902.107 | I11: 900.396 | J11: 1.711 | Q11: 0.7 | R11: PEAD CORRUGADO | S11: 1.684 | T11: =IF(AND(S11<=2,S11>0),Q11+matSL(R11,Q11)+0.1,IF(AND(S11>2,S11<=3),Q11+0.1+0.1+matSL(R11,Q11),IF(AND(S11>3,S11<=4),Q11+0.1+0.1+0.1+matSL(R11,Q11),IF(AND(S11>4,S11<=5),Q11+matSL(R11,Q11)+0.1+0.1+0.1+0.1,IF(AND(S11>5,S11<=6),Q11+matSL(R11,Q11)+0.1+0.1+0.1+0.1+0.1,IF(AND(S11>6,S11<=7),Q11+matSL(R11,Q11)+0.1+0.1+0.1+0.1+0.1+0.1,"")))))) -> 1.15 | U11: =IFERROR(AVERAGE(T11:T11),"") -> 1.15 | X11: 4 | Y11: 0.46 | Z11: 0.276 | AA11: 7.0104 | AB11: 0 | AC11: 0 | AD11: 0 | AE11: 0.736 | AF11: 7.0104 | AG11: 1.3003325 | AH11: =IFERROR(IF(X11>0,IF((S11-Q11)>2,X11*U11*($AG$6+Q11+0.05)-#REF!,0),0),"") -> 0 | AI11: 0 | AJ11: 0 | AK11: 0 | AL11: 0 | AM11: 0 | AN11: 0 | AO11: 0.38732 | AP11: 1.539335 | AQ11: 4 | AR11: 0 | AS11: 2.993777778 | AU11: 1.2720665 | AV11: 3.634666 | AW11: 1.38 | AX11: 3.5267325 | AY11: 4.9067325 | AZ11: 4.033734375 | BA11: 40.33734375 | CR11: PVC | CS11: 250
D12: =MAXA(F7:F11) -> 44 | G12: =MINA(I7:I11) -> 897.965 | I12: =MAXA(I7:I11) -> 900.396

Sheet ORIENTAÇÃO PLANILHA
A2: 1- | B2: Aba Resumo - sempre deve ser a primeira.
A3: 2- | B3: Montar abas conforme as unidades construtivas do seu orçamento.
A4: 3- | B4: Colunas A e B devem ser utilizadas apenas para o cod da tabela MOS ou cod de materiais.
A5: 4- | B5: As tabelas de materiais e equipamentos devem ser a mesma compartilhada no autocad.
A6: 5- | B6: Aba "TAB VIG MOS SERV"foi criada para auxiliar na composição dos itens tabelados, copiar os serviços necessários na sua unidade construtiva.
A7: 6- | B7: Itens não MOS criar nove digitos como 111111111 ; 111111112 , para identificar no lançamento por lote SPO.
A8: 7- | B8: Aba 'MC obra linear" foi disponibilizado como material auxiliar para memorial de cálculo para obras lineares.
A9: 8- | B9: Para exportar em lote, são no máximo 50 codigos por vez.
B11: Qualquer duvida favor entrar em contato com a GPES
